{"text_format":"3","workbook":"xlsx","n_sheets":3,"sheets":["INDY","Translation","Selections"],"not_rendered":{"images":1,"defined_names":2,"comments":1},"read":"whole","date_system":"1900"}

{"sheet":"INDY","index":0,"n_rows":87,"n_cols":56,"rows_kept":87,"merged":[[0,43,0,46],[0,48,0,51],[0,53,0,56],[3,0,4,56],[5,0,5,56],[7,28,7,34],[7,35,7,43],[8,1,9,25],[8,30,9,32],[8,38,9,40],[8,46,9,48],[8,49,9,51],[11,1,12,12],[11,13,12,15],[13,53,14,55],[15,14,16,16],[17,1,18,5],[17,21,18,25],[19,1,20,3],[19,15,20,17],[19,21,20,23],[20,28,21,30],[28,51,29,54],[29,46,29,47],[30,51,31,54],[33,51,34,54],[34,46,34,47],[35,51,36,54],[39,16,40,26],[43,50,43,55],[44,15,44,21],[44,50,44,55],[45,15,45,21],[47,15,47,21],[48,52,49,56],[50,53,51,55],[51,20,51,30],[51,33,52,35],[51,40,51,50],[55,20,55,30],[57,40,57,54],[60,20,60,30],[62,48,62,54],[63,48,63,54],[65,20,65,30],[69,40,69,54],[70,24,70,30],[73,18,84,35],[74,13,75,15],[74,48,74,54],[75,48,75,54],[81,40,81,54],[82,13,83,15],[84,48,84,54],[86,0,87,51],[86,52,87,52],[86,53,87,54],[86,55,87,56]]}
[]
[]
[]
[{"$f":"UPPER(Translation!A5)","v":"LES PORTES INDUSTRIELLES"}]
[]
[{"$f":"Translation!A3","v":"Formulaire de commande"}]
[]
[null,{"$f":"Translation!A10","v":"Numéro/dénomination de la commande"},{"$nulls":26},{"$f":"Translation!A11","v":"Quantité"},{"$nulls":6},{"$f":"Translation!A12","v":"Semaine de livraison"}]
[{"$nulls":46},"FR"]
[]
[{"$nulls":28},{"$f":"Translation!A4","v":"Tout est specifié pour une vue de l’intérieur!"}]
[null,{"$f":"Translation!A16","v":"Hauteur du linteau"},{"$nulls":26},{"$f":"Translation!A19","v":"Type de guide"}]
[{"$nulls":16},"mm",{"$nulls":12},"SL350",null,null,{"$f":"Translation!A20","v":"Guide standard (min. 350 mm)"}]
[{"$nulls":29},"SL420",null,null,{"$f":"Translation!A21","v":"Guide standard (min. 420 mm)"},{"$nulls":11},{"$f":"Translation!A144","v":"Renforts"},{"$nulls":8},{"$f":"IF(OR(O16=\"\",P20=\"\",AS15=\"\",O16<6000),\"\",VLOOKUP(P20,Selections!N3:O11,2,TRUE))","v":""}]
[{"$nulls":29},"HL",null,null,{"$f":"Translation!A22","v":"Guide surélevé"},{"$nulls":11},{"$f":"IF(O16>6000,\"X\",\"\")","v":""},null,{"$f":"Translation!A59","v":"Oui"},{"$nulls":5},{"$f":"Translation!A11","v":"Quantité"}]
[{"$nulls":13},{"$f":"Translation!A17","v":"Largeur de l'ouverture (W)"},{"$nulls":15},"HL-T",null,null,{"$f":"Translation!A23","v":"Guide surélevé, T-door"},{"$nulls":11},{"$f":"Translation!A145","v":"Parachute ressort"}]
[{"$nulls":17},"mm",{"$nulls":11},"VL",null,null,{"$f":"Translation!A24","v":"Guide vertical"},{"$nulls":13},{"$f":"Translation!A59","v":"Oui"}]
[null,{"$f":"Translation!A13& CHAR(10)& Translation!A14","v":"Chambranle\nGauche"},{"$nulls":19},{"$f":"Translation!A13& CHAR(10)& Translation!A15","v":"Chambranle\nDroit"},{"$nulls":7},"VL-T",null,null,{"$f":"Translation!A25","v":"Guide vertical, T-Door"},{"$nulls":11},{"$f":"Translation!A194","v":"Arbre préassemblé"}]
[{"$nulls":29},"LL-DT",null,null,{"$f":"Translation!A26","v":"Guide rabaissé (min. 200 mm)"},{"$nulls":13},{"$f":"Translation!A59&Translation!A195","v":"Oui, jusqu'à 4000x4000mm"}]
[{"$nulls":14},{"$f":"Translation!A18","v":"Hauteur de l'ouverture (H)"},{"$nulls":14},"LL-CE",null,null,{"$f":"Translation!A27","v":"Guide rabaissé (min. 230 mm)"},{"$nulls":11},{"$f":"Translation!A140","v":"Ferrures inférieures"}]
[{"$nulls":4},"mm",{"$nulls":13},"mm",{"$nulls":5},"mm",{"$nulls":6},{"$f":"IF(AG22<>\"\",\"°\",\"\")","v":"°"},{"$nulls":14},{"$f":"Translation!A141","v":"En aluminium"}]
[{"$nulls":32},{"$f":"IF(OR(AC13<>\"\",AC14<>\"\",AC15<>\"\",AC19<>\"\",AC20<>\"\",AND(AC13=\"\",AC14=\"\",AC15=\"\",AC16=\"\",AC17=\"\",AC18=\"\",AC19=\"\",AC20=\"\")),Translation!A28,\"\")","v":"Guide oblique"},{"$nulls":13},{"$f":"Translation!A143","v":"Parachutes câble"}]
[null,{"$f":"Translation!A280","v":"En cas des alignements des panneaux avec des portes attenants, notez cette information sur la commande avec lesquelles portes désirez-vous les alignements des panneaux."}]
[]
[null,"STANDARD",{"$nulls":8},"PROTECT",{"$nulls":18},{"$f":"Translation!A43","v":"Porte d’entrée"}]
[null,{"$f":"Translation!A32","v":"Lamelle stucco"},{"$nulls":8},{"$f":"Translation!A32","v":"Lamelle stucco"},{"$nulls":8},{"$f":"Translation!A37","v":"Profilé en V lisse"}]
[{"$nulls":3},"533; 9010/9002",{"$nulls":8},"672; 9010/9010",{"$nulls":8},"687; 9006/9010",{"$nulls":7},{"$f":"Translation!A44","v":"Hauteur du seuil"},{"$nulls":11},{"$f":"Translation!A53","v":"Sens d’ouverture"}]
[{"$nulls":3},"531; 9002/9002",{"$nulls":8},"671; 9002/9010",{"$nulls":8},"682; 7016/9010",{"$nulls":9},{"$f":"Translation!A45","v":"Seuil standard (220 mm)"},{"$nulls":11},{"$f":"Translation!A54&\"; \"&Translation!A55","v":"charnières du côté gauche; DIN droit"}]
[{"$nulls":3},"532; 9006/9002",{"$nulls":8},"673; 9006/9010",{"$nulls":6},{"$f":"Translation!A38","v":"Sans rainure stucco"},{"$nulls":11},{"$f":"Translation!A46","v":"Seuil extra-bas (25 mm)"},{"$nulls":19},{"$f":"Translation!A65","v":"Extér."}]
[{"$nulls":3},"536; 9007/9002",{"$nulls":8},"694; 9007/9010",{"$nulls":8},"699; 9010/9010"]
[{"$nulls":3},"534; 7016/9002",{"$nulls":8},"754; 1021/9010",{"$nulls":16},{"$f":"Translation!A48","v":"Emplacement de la porte"},{"$nulls":21},{"$f":"Translation!A66","v":"Intér."}]
[{"$nulls":3},"535; 5010/9002",{"$nulls":8},"675; 3000/9010",{"$nulls":6},{"$f":"Translation!A39","v":"Sans rainure lisse"},{"$nulls":11},{"$f":"Translation!A49","v":"À gauche"}]
[{"$nulls":3},"538; 8014/9002",{"$nulls":8},"676; 5010/9010",{"$nulls":8},"667; 9016/9010",{"$nulls":9},{"$f":"Translation!A50","v":"Au centre"},{"$nulls":11},{"$f":"Translation!A56&\"; \"&Translation!A57","v":"charnières du côté droit; DIN à gauche"}]
[{"$nulls":3},"540; 7021/9002",{"$nulls":8},"677; 6009/9010",{"$nulls":8},"668; 7016/9010",{"$nulls":9},{"$f":"Translation!A51","v":"À droite"},{"$nulls":19},{"$f":"Translation!A65","v":"Extér."}]
[{"$nulls":12},"679; 8014/9010",{"$nulls":8},"680; DB703/9010"]
[null,{"$f":"Translation!A37","v":"Profilé en V lisse"},{"$nulls":10},"678; 7016/9010",{"$nulls":16},{"$f":"Translation!A47","v":"Contact de la porte"},{"$nulls":21},{"$f":"Translation!A66","v":"Intér."}]
[{"$nulls":3},"539; 9006/9002",{"$nulls":8},"684; 9005/9010",{"$nulls":6},{"$f":"Translation!A40","v":"Sans rainure woodgrain"},{"$nulls":11},{"$f":"Translation!A49","v":"À gauche"}]
[{"$nulls":21},"669; 9010/9010",{"$nulls":9},{"$f":"Translation!A51","v":"À droite"}]
[null,{"$f":"Translation!A32&\", 80 mm\"","v":"Lamelle stucco, 80 mm"}]
[{"$nulls":3},"531-80; 9002/9002",{"$nulls":8},{"$f":"Translation!A42","v":"Autre :"},{"$nulls":16},{"$f":"Translation!A67","v":"Type de poignée et de serrure"},{"$nulls":10},{"$f":"Translation!A58","v":"Peinture des profilés de la porte"}]
[{"$nulls":31},"KL 01",{"$nulls":5},"KL 05",{"$nulls":4},{"$f":"Translation!A60","v":"RAL"}]
[null,{"$f":"Translation!A68","v":"Peinture des panneaux"},{"$nulls":29},"KL 02",{"$nulls":5},"KL 06",{"$nulls":4},{"$f":"Translation!A61","v":"NCS"}]
[{"$nulls":3},{"$f":"Translation!A60","v":"RAL"},{"$nulls":6},{"$f":"Translation!A61","v":"NCS"},{"$nulls":20},"KL 03",{"$nulls":5},"KL 13",{"$nulls":12},{"$f":"Translation!A62","v":"Teinte (code)"}]
[{"$nulls":15},{"$f":"Translation!A62","v":"Teinte (code)"},{"$nulls":15},"KL 04",{"$nulls":5},"KL 14",{"$nulls":4},{"$f":"Translation!A63","v":"Peinture extérieure"}]
[{"$nulls":3},{"$f":"Translation!A63","v":"Peinture extérieure"},{"$nulls":38},{"$f":"Translation!A64","v":"Peinture intérieure"}]
[{"$nulls":3},{"$f":"Translation!A64","v":"Peinture intérieure"}]
[{"$nulls":15},{"$f":"Translation!A62","v":"Teinte (code)"}]
[{"$nulls":3},{"$f":"Translation!A69","v":"Peinture des barres supérieure et infér."},{"$nulls":34},{"$f":"Translation!A75","v":"Fenêtre"}]
[{"$nulls":40},1,{"$f":"AO49+1","v":2},{"$f":"AP49+1","v":3},4,5,6,7,8,9,10,11,null,{"$f":"Translation!A74","v":"Nombre par section"}]
[{"$nulls":39},{"$f":"Translation!A73","v":"Sections"}]
[null,{"$f":"Translation!A296","v":"Cornière de finition large/Pentures latérales dble"},{"$nulls":16},{"$f":"Translation!A196","v":"Cornière de soutien"},{"$nulls":21},{"$f":"Translation!A117","v":"Type de fenêtre"}]
[null,{"$f":"IF(O16>=5000,\"X\",\"\")","v":""},null,{"$f":"Translation!A297","v":"Oui (standard pour W>=5000 mm)"},{"$nulls":14},"X"]
[{"$nulls":32},{"$f":"Translation!A11","v":"Quantité"}]
[null,{"$f":"Translation!A129","v":"Commande"},{"$nulls":36},{"$f":"Translation!A92","v":"Section Full Vision"}]
[{"$nulls":3},{"$f":"Translation!A130","v":"Manuelle"},{"$nulls":14},{"$f":"Translation!A95","v":"Barrières, barrière verrouillables"},{"$nulls":21},1,{"$f":"AO55+1","v":2},{"$f":"AP55+1","v":3},4,5,6,7,8,9,10,11]
[{"$nulls":3},{"$f":"Translation!A131","v":"Transmission à chaîne 1:4"},{"$nulls":35},{"$f":"Translation!A73","v":"Sections"}]
[{"$nulls":3},{"$f":"Translation!A132","v":"Moteur"},{"$nulls":36},{"$f":"Translation!A114","v":"Type de vitrage"}]
[{"$nulls":3},{"$f":"Translation!A133","v":"Le moteur est fourni par le client"},{"$nulls":16},{"$f":"Translation!A49","v":"À gauche"},{"$nulls":5},{"$f":"Translation!A50","v":"Au centre"},{"$nulls":6},{"$f":"Translation!A51","v":"À droite"}]
[]
[null,{"$f":"Translation!A136","v":"Mode de commande"},{"$nulls":16},{"$f":"Translation!A106","v":"Poignées"},{"$nulls":19},{"$f":"Translation!A70","v":"Peinture du cadre Full Vision"}]
[{"$nulls":3},{"$f":"Translation!A137","v":"Totman"},{"$nulls":36},{"$f":"Translation!A60","v":"RAL"},{"$nulls":5},{"$f":"Translation!A61","v":"NCS"}]
[{"$nulls":3},{"$f":"Translation!A138","v":"Gestion par impulsions"},{"$nulls":44},{"$f":"Translation!A62","v":"Teinte (code)"}]
[{"$nulls":3},{"$f":"Translation!A139","v":"Commande à distance"},{"$nulls":16},{"$f":"Translation!A49","v":"À gauche"},{"$nulls":12},{"$f":"Translation!A51","v":"À droite"},{"$nulls":6},{"$f":"Translation!A63","v":"Peinture extérieure"}]
[{"$nulls":40},{"$f":"Translation!A64","v":"Peinture intérieure"}]
[null,{"$f":"Translation!A135","v":"Accessoires du moteur"},{"$nulls":16},{"$f":"Translation!A163","v":"Grilles de ventilation"}]
[{"$nulls":3},"400V",{"$nulls":6},{"$f":"Translation!A146","v":"Unité de comm. IP 54"},{"$nulls":27},{"$f":"Translation!A93","v":"Section isolée"}]
[{"$nulls":3},"230V",{"$nulls":6},{"$f":"Translation!A147","v":"Unité de comm. IP 65"},{"$nulls":29},1,{"$f":"AO67+1","v":2},{"$f":"AP67+1","v":3},4,5,6,7,8,9,10,11]
[{"$nulls":20},{"$f":"Translation!A49","v":"À gauche"},{"$nulls":12},{"$f":"Translation!A51","v":"À droite"},{"$nulls":5},{"$f":"Translation!A73","v":"Sections"}]
[{"$nulls":3},{"$f":"Translation!A148","v":"Convertisseur de fréquence"},{"$nulls":36},{"$f":"Translation!A115","v":"Type de section isolée"}]
[{"$nulls":20},{"$f":"Translation!A60","v":"RAL"},{"$nulls":3},{"$f":"Translation!A62","v":"Teinte (code)"}]
[{"$nulls":3},{"$f":"Translation!A149","v":"Spirale câble"},{"$nulls":16},{"$f":"Translation!A61","v":"NCS"}]
[{"$nulls":3},{"$f":"Translation!A150","v":"Transfert sans fil (WSD)"},{"$nulls":34},{"$f":"Translation!A71","v":"Peinture des panneaux de remplissage"}]
[{"$nulls":18},{"$f":"Translation!A162","v":"Espace réservé à vos commentaires"},{"$nulls":21},{"$f":"Translation!A60","v":"RAL"},{"$nulls":5},{"$f":"Translation!A61","v":"NCS"}]
[null,{"$f":"Translation!A151","v":"Boutons de commande à distance"},{"$nulls":46},{"$f":"Translation!A62","v":"Teinte (code)"}]
[{"$nulls":3},{"$f":"Translation!A153","v":"à 3 canaux"},{"$nulls":8},{"$f":"Translation!A11","v":"Quantité"},{"$nulls":27},{"$f":"Translation!A63","v":"Peinture extérieure"}]
[{"$nulls":40},{"$f":"Translation!A64","v":"Peinture intérieure"}]
[]
[{"$nulls":3},{"$f":"Translation!A155","v":"Cellules photo réfléchissante extérieure"},{"$nulls":34},{"$f":"Translation!A94","v":"Séction avec métal déployé"}]
[{"$nulls":40},1,{"$f":"AO79+1","v":2},{"$f":"AP79+1","v":3},4,5,6,7,8,9,10,11]
[{"$nulls":3},{"$f":"Translation!A156","v":"Triple bouton extérieur"},{"$nulls":35},{"$f":"Translation!A73","v":"Sections"}]
[{"$nulls":40},{"$f":"Translation!A116","v":"Type de maillage"}]
[null,{"$f":"Translation!A157","v":"Phare"}]
[{"$nulls":3},{"$f":"Translation!A159","v":"Lampe rouge"},{"$nulls":8},{"$f":"Translation!A11","v":"Quantité"}]
[{"$nulls":3},{"$f":"Translation!A160","v":"Lampe verte"},{"$nulls":36},{"$f":"Translation!A60","v":"RAL"},{"$nulls":7},{"$f":"Translation!A62","v":"Teinte (code)"}]
[{"$nulls":3},{"$f":"Translation!A161","v":"Lampe rouge + verte"},{"$nulls":36},{"$f":"Translation!A61","v":"NCS"}]
[]
[{"$f":"\"TOORS CZ s.r.o., Turkova 1338, 504 01 Nový Bydžov, \"&Translation!A2&\", T: +420 495 491 855,  F: +420 498 606 714, e-mail: toors@toors.cz, www.toors.cz\"","v":"TOORS CZ s.r.o., Turkova 1338, 504 01 Nový Bydžov, République tchèque, T: +420 495 491 855,  F: +420 498 606 714, e-mail: toors@toors.cz, www.toors.cz"},{"$nulls":52},"rev.: ",null,2034]

{"sheet":"Translation","index":1,"n_rows":306,"n_cols":59,"rows_kept":306,"hidden":true}
[{"$f":"IF(INDY!AU9=I1,1,IF(INDY!AU9=J1,2,IF(INDY!AU9=K1,3,IF(INDY!AU9=L1,4,IF(INDY!AU9=M1,5,IF(INDY!AU9=N1,6,\"Chyba\"))))))","v":6},{"$nulls":7},"CZ","EN","DE","PL","NL","FR"]
[{"$f":"VLOOKUP(I2,I:N,$A$1,FALSE)","v":"République tchèque"},{"$nulls":7},"Česká republika","Czech Republic","Tschechische Republik","Republika Czeska","Tsjechische Republiek","République tchèque"]
["Formulaire de commande",{"$nulls":7},"Objednávkový formulář","Order Form","Bestellformular","Formularz zamówienia","Bestelformulier","Formulaire de commande"]
["Tout est specifié pour une vue de l’intérieur!",{"$nulls":7},"Vše specifikováno při pohledu zevnitř!","All views are interior views!","Alles ist bestimmt bei INNENANSICHT","Wszystko jest specyfikowane z widokiem od zewnątrz!","Alles gespecificeerd van binnenuit gezien!","Tout est specifié pour une vue de l’intérieur!"]
["Les Portes Industrielles",{"$nulls":7},"Průmyslová vrata","Industrial door","Industrietor","Brama przemysłowa","Industriële deur","Les Portes Industrielles"]
["Porte de garage",{"$nulls":7},"Garážová vrata","Garage door","Garagentor","Brama garażowa","Garagedeur","Porte de garage"]
["Portail à deux battants",{"$nulls":7},"Dvoukřídlá vrata","Double leaf door","Zweiflüglig Tor","Brama dwuskrzydłowa","Tweevleugelige deur","Portail à deux battants"]
["Porte d’entrée latérale (ManDoor)",{"$nulls":7},"Boční vstupní dveře (ManDoor)","Side entrance door (ManDoor)","Nebeneingangstür (ManDoor)","Boczne drzwi wejściowe (ManDoor)","Deur voor zij-ingang","Porte d’entrée latérale (ManDoor)"]
["Porte d’entrée latérale (ManDoor NG)",{"$nulls":7},"Boční vstupní dveře (ManDoor NG)","Side entrance door (ManDoor NG)","Nebeneingangstür (ManDoor NG)","Boczne drzwi wejściowe (ManDoor NG)","Deur voor zij-ingang NG","Porte d’entrée latérale (ManDoor NG)"]
["Numéro/dénomination de la commande",{"$nulls":7},"Číslo/název objednávky","Order No. or name","Auftragsnummer","Nr/nazwa zamówienia","Ordernummer/ordernaam","Numéro/dénomination de la commande"]
["Quantité",{"$nulls":7},"Počet kusů","Quantity","Stückzahl","Ilość sztuk","Aantal stuks","Quantité"]
["Semaine de livraison",{"$nulls":7},"Dodací týden","Delivery week","Lieferwoche","Tydzień dostawy","Leveringsweek","Semaine de livraison"]
["Chambranle",{"$nulls":7},"Ostění","Side room","Leibung","Węgarek","Bekleding","Chambranle"]
["Gauche",{"$nulls":7},"Levé","Left","Links","Lewy","Links","Gauche"]
["Droit",{"$nulls":7},"Pravé","Right","Rechts","Prawy","Rechts","Droit"]
["Hauteur du linteau",{"$nulls":7},"Výška překladu","Height of lintel","Sturzhöhe","Wysokość nadproża","Hoogte van de bovenste draagconstr.","Hauteur du linteau"]
["Largeur de l'ouverture (W)",{"$nulls":7},"Šířka otvoru (W)","Width of opening (W)","Lichte Breite","Szerokość otworu (W)","Breedte van de open. (B)","Largeur de l'ouverture (W)"]
["Hauteur de l'ouverture (H)",{"$nulls":7},"Výška otvoru (H)","Height of opening (H)","Lichte Höhe","Wysokość otworu (H)","Hoogte van de opening (H)","Hauteur de l'ouverture (H)"]
["Type de guide",{"$nulls":7},"Typ vedení","Lift type","Umlenkung (Beschlagstyp)","Rodzaj prowadzenia","Type geleiding","Type de guide"]
["Guide standard (min. 350 mm)",{"$nulls":7},"Standardní vedení (min. 350 mm)","Standard lift (min. 350 mm)","Standardbeschlag SL 350","Prowad. standard. (min 350 mm)","Standaardgeleiding (min. 350 mm)","Guide standard (min. 350 mm)"]
["Guide standard (min. 420 mm)",{"$nulls":7},"Standardní vedení (min. 420 mm)","Standard lift (min. 420 mm)","Standardbeschlag SL 420","Prowad. standard. (min 420 mm)","Standaardgeleiding (min. 420 mm)","Guide standard (min. 420 mm)"]
["Guide surélevé",{"$nulls":7},"Zvýšené vedení","High lift","Hochführung","Prowad. podwyższone","Verhoogde geleiding","Guide surélevé"]
["Guide surélevé, T-door",{"$nulls":7},"Zvýšené vedení, T-door","High lift, T-Door","Hochführung - Federwelle unten","Prowad. podwyższone, T-door","Verhoogde geleiding, T-deur","Guide surélevé, T-door"]
["Guide vertical",{"$nulls":7},"Vertikální vedení","Vertical lift","Vertikalbesch. - Senkrechtläufer","Prowad. pionowe","Verticale geleiding","Guide vertical"]
["Guide vertical, T-Door",{"$nulls":7},"Vertikální vedení, T-Door","Vertical lift, T-Door","Vertikalbeschl. - Federwelle unt.","Prowad. pionowe, T-door","Verticale geleiding, T-deur","Guide vertical, T-Door"]
["Guide rabaissé (min. 200 mm)",{"$nulls":7},"Snížené vedení (min. 200 mm)","Low lift (min. 200 mm)","Niedrigsturz (min. 200 mm)","Prowad. obniżone (min 200 mm)","Verlaagde geleiding (min. 200 mm)","Guide rabaissé (min. 200 mm)"]
["Guide rabaissé (min. 230 mm)",{"$nulls":7},"Snížené vedení (min. 230 mm)","Low lift (min. 230 mm)","Niedrigsturz (min. 230 mm)","Prowad. obniżone (min 230 mm)","Verlaagde geleiding (min. 230 mm)","Guide rabaissé (min. 230 mm)"]
["Guide oblique",{"$nulls":7},"Vedení pod úhlem","Following the roof","Dachfolgebeschlag","Prowadzenie pod kątem","Geleiding onder een hoek","Guide oblique"]
["Système de rénovation",{"$nulls":7},"Renovační systém","Renovation system","Renovierungssystem","System renowacyjny","Renovatiesysteem","Système de rénovation"]
["Guide rabaissé (min. 200 mm)",{"$nulls":7},"Snížené vedení (min. 200 mm)","Low lift (min. 200 mm)","Niedrigsturz (min. 200 mm)","LHF-C Low Lift","LHF-C Low Lift","LHF-C Low Lift"]
["Guide rabaissé (min. 90 mm)",{"$nulls":7},"Snížené vedení (min. 90 mm)","Low lift (min. 90 mm)","Niedrigsturz (min. 90 mm)","Prowad. obniżone (min 90 mm)","Verlaagde geleiding (min. 90 mm)","Guide rabaissé (min. 90 mm)"]
["Lamelle stucco",{"$nulls":7},"Lamela stucco","Lamella stucco","Lamelle stucco","Płytka stucco","Lamel stucwerk","Lamelle stucco"]
["Lamelle lisse",{"$nulls":7},"Lamela hladká","Lamella smooth","Lamelle glatt","Płytka gładka","Lamel glad","Lamelle lisse"]
["Lamelle woodgrain",{"$nulls":7},"Lamela woodgrain","Lamella woodgrain","Lamelle Woodgrain","Płytka woodgrain","Lamel houtnerf","Lamelle woodgrain"]
["Rainure centrale woodgrain",{"$nulls":7},"Stř. drážka woodgrain","Central rib woodgrain","Mittelsicke Woodgrain","Przetłocz. centralne woodgr.","Centrale groef houtnerf","Rainure centrale woodgrain"]
["Rainure centrale lisse",{"$nulls":7},"Stř. drážka hladká","Central rib smooth","Mittelsicke Glatt","Przetłocz. centralne gładka","Centrale groef glad","Rainure centrale lisse"]
["Profilé en V lisse",{"$nulls":7},"V-profil hladká","V-profile smooth","V-Profil glatt ","V-profil gładka","V-profiel glad","Profilé en V lisse"]
["Sans rainure stucco",{"$nulls":7},"Bez drážky stucco","Flat stucco","Ohne Sicke stucco","Bez przetłoczenia stucco","Zonder groef stucwerk","Sans rainure stucco"]
["Sans rainure lisse",{"$nulls":7},"Bez drážky hladká","Flat smooth","Ohne Sicke glatt","Bez przetłoczenia gładka","Zonder groef glad","Sans rainure lisse"]
["Sans rainure woodgrain",{"$nulls":7},"Bez drážky woodgrain","Flat woodgrain","Ohne Sicke woodgrain","Bez przetłoczenia woodgrain","Zonder groef houtnerf","Sans rainure woodgrain"]
["Cassette woodgrain",{"$nulls":7},"Kazeta woodgrain","Cassette woodgrain","Kasette Woodgrain","Kaseton woodgrain","Cassette houtnerf","Cassette woodgrain"]
["Autre :",{"$nulls":7},"Jiný:","Other:","Anderes:","Inny:","Anders:","Autre :"]
["Porte d’entrée",{"$nulls":7},"Vstupní dveře","Passdoor","Schlupftür","Drzwi wejściowe","Toegangsdeur","Porte d’entrée"]
["Hauteur du seuil",{"$nulls":7},"Výška prahu","Height of threshold","Höhe der Schwelle","Wysokość progu","Drempelhoogte","Hauteur du seuil"]
["Seuil standard (220 mm)",{"$nulls":7},"Standardní práh (220 mm)","Standard threshold (220 mm)","Standardschwelle (220mm)","Standardowy próg (220 mm)","Standaarddrempel (220 mm)","Seuil standard (220 mm)"]
["Seuil extra-bas (25 mm)",{"$nulls":7},"Extra nízký práh (25 mm)","Extra Low Threshold (25 mm)","Extra niedrige Schwelle (25mm)","Ekstra niski próg (25 mm)","Extra lage drempel (25 mm)","Seuil extra-bas (25 mm)"]
["Contact de la porte",{"$nulls":7},"Kontakt dveří","Passdoor contact","Schlupftürkontakt (Kabelausfürung)","Zestyki drzwi","Contact van de deur","Contact de la porte"]
["Emplacement de la porte",{"$nulls":7},"Umístění dveří","Position of passdoor","Position der Schlupftür","Umieszczenie drzwi","Plaatsing van de deur","Emplacement de la porte"]
["À gauche",{"$nulls":7},"Vlevo","Left","Links","W lewo","Links","À gauche"]
["Au centre",{"$nulls":7},"Uprostřed","Middle","In der Mitte","Pośrodku","Midden","Au centre"]
["À droite",{"$nulls":7},"Vpravo","Right","Rechts","W prawo","Rechts","À droite"]
["À gauche et à droite",{"$nulls":7},"Vlevo a vpravo","Left and Right","Links und rechts","W lewo i w prawo","Links en rechts","À gauche et à droite"]
["Sens d’ouverture",{"$nulls":7},"Směr otevírání","Direction of opening","Öffnungsrichtung","Kierunek otwierania","Openingsrichting","Sens d’ouverture"]
["charnières du côté gauche",{"$nulls":7},"panty na levé straně","hinges on left","Scharniere innen links","zawiasy po lewej stronie","Scharnieren aan de linkerzijde","charnières du côté gauche"]
["DIN droit",{"$nulls":7},"DIN pravé","DIN right","DIN rechts","DIN prawe","DIN rechts","DIN droit"]
["charnières du côté droit",{"$nulls":7},"panty na pravé straně","hinges on right","Scharniere innen rechts","zawiasy po prawej stronie","Scharnieren aan de rechterzijde","charnières du côté droit"]
["DIN à gauche",{"$nulls":7},"DIN levé","DIN left","DIN links","DIN lewe","DIN links","DIN à gauche"]
["Peinture des profilés de la porte",{"$nulls":7},"Lakování profilů dveří","Painting of passdoor profiles","Lackierung der Schlupftürprofile","Lakierowanie profilów drzwi","Lakken van deurprofielen","Peinture des profilés de la porte"]
["Oui",{"$nulls":7},"Ano","Yes","Ja","Tak","Ja","Oui"]
["RAL",{"$nulls":7},"RAL","RAL","RAL","RAL","RAL","RAL"]
["NCS",{"$nulls":7},"NCS","NCS","NCS","NCS","NCS","NCS"]
["Teinte (code)",{"$nulls":7},"Odstín (kód)","Shade (code)","Farbton (Kode)","Odcień (kod)","Tint (code)","Teinte (code)"]
["Peinture extérieure",{"$nulls":7},"Externí lakování","External painting","Außenlackierung","Lakierowanie zewn.","Kleur buitenkant","Peinture extérieure"]
["Peinture intérieure",{"$nulls":7},"Interní lakování","Internal painting","Innenlackierung","Lakierowanie wewn.","Kleur binnenkant","Peinture intérieure"]
["Extér.",{"$nulls":7},"Venku","Out","Außen","Na zewnątrz","Buiten","Extér."]
[{"$f":"VLOOKUP(I66,I:N,$A$1,FALSE)","v":"Intér."},{"$nulls":7},"Uvnitř","In","Innen","Wewnątrz","Binnen","Intér."]
["Type de poignée et de serrure",{"$nulls":7},"Typ kliky a zámku","Type of handle and lock","Typ der Klinke","Rodzaj klamki i zamka","Type handvat en slot","Type de poignée et de serrure"]
["Peinture des panneaux",{"$nulls":7},"Lakování panelů","Painting of panels","Lackierung der Paneele","Lakierowanie paneli","Kleur van panelen","Peinture des panneaux"]
["Peinture des barres supérieure et infér.",{"$nulls":7},"Lakování spodní a horní lišty","Painting of bottom and top profile","Lackierung der unteren Leiste","Lakierowanie listwy dolnej i górnej","Kleur van de onder- en bovenlat","Peinture des barres supérieure et infér."]
["Peinture du cadre Full Vision",{"$nulls":7},"Lakování Full Vision rámu","Painting of Full Visions' frame","Lackierung der Alu-Sektion","Lakierowanie ramy panoramicznej Full Vision","Kleur van Full Vision frame","Peinture du cadre Full Vision"]
["Peinture des panneaux de remplissage",{"$nulls":7},"Lakování výplní","Painting of fillings","Lackierung der Füllung der Alu-Sektion","Lakierowanie wypełnienia","Kleur van de voering","Peinture des panneaux de remplissage"]
["Vitrage des sections",{"$nulls":7},"Prosklení sekcí","Glazing of sections","Verglasung","Przeszklenie sekcji","Beglazing van secties","Vitrage des sections"]
["Sections",{"$nulls":7},"Sekce","Section","Sektion","Sekcje","Secties","Sections"]
["Nombre par section",{"$nulls":7},"Počet v jedné sekci","Quantity per 1 section","Stückzahl in einer Sektion","Ilość w jednej sekcji","Aantal in één sectie","Nombre par section"]
["Fenêtre",{"$nulls":7},"Okna","Windows","Fenster","Okna","Vensters","Fenêtre"]
["203 ; Ovale 1, CLICK",{"$nulls":7},"203; Oválné 1, CLICK","203; Oval 1, CLICK","203; oval 1, CLICK","203; Owalne 1, CLICK","203; Ovaal 1, CLICK","203 ; Ovale 1, CLICK"]
["205 ; Carré 1, CLICK",{"$nulls":7},"205; Hranaté 1, CLICK","205; Rectangular 1, CLICK","205; eckig 1, CLICK","205; Prostokątne 1, CLICK","205; Hoekig 1, CLICK","205 ; Carré 1, CLICK"]
["207 ; Carré 2",{"$nulls":7},"207; Hranaté 2","207; Rectangular 2","207; eckig 2","207; Prostokątne 2","207; Hoekig 2","207 ; Carré 2"]
["216 ; Carré 9",{"$nulls":7},"216; Hranaté 9","216; Rectangular 9","216; eckig 9","216; Prostokątne 9","216; Hoekig 9","216 ; Carré 9"]
["217 ; Rond",{"$nulls":7},"217; Kulaté","217; Round","217; rund","217; Okrągłe","217; Rond","217 ; Rond"]
["218 ; Carré INOX",{"$nulls":7},"218; Hranaté NEREZ","218; Rectangular stainless steel","218; eckig, Edelstahl","218; Prostokątne NIERDZ.","218; Hoekig 1 ROESTVRIJ","218 ; Carré INOX"]
["215 ; Rond INOX",{"$nulls":7},"215; Kulaté NEREZ","215; Round stainless steel","215; rund, Edelstahl","215; Okrągłe NIERDZ.","215; Rond ROESTVRIJ","215 ; Rond INOX"]
["211 ; Ovale 1, panneau de 80 mm",{"$nulls":7},"211; Oválné 1,  80  mm panel","211; Oval 1,  80  mm pannel","211; oval 1,  80  mm Paneel","211; Okrągłe 1, 80 mm panel","211; Ovaal 1, 80 mm paneel","211 ; Ovale 1, panneau de 80 mm"]
["212 ; Carré 1, panneau de 80 mm",{"$nulls":7},"212; Hranaté 1,  80 mm panel","212; Rectangular 1,  80 mm pannel","212; eckig 1,  80 mm Paneel","212; Prostokątne 1,  80 mm panel","212; Hoek 1, 80 mm paneel","212 ; Carré 1, panneau de 80 mm",{"$nulls":44},1649]
["216 ; Carré 9, panneau de 80 mm",{"$nulls":7},"216; Hranaté 9, 80 mm panel","216; Rectangular 9, 80 mm pannel","216; eckig 9, 80 mm Paneel","216; Prostokątne 9, 80 mm panel","216; Hoek 9, 80 mm paneel","216 ; Carré 9, panneau de 80 mm"]
["204 ; Carré 3",{"$nulls":7},"204; Hranaté 3","204; Rectangular 3","204; eckig 3","204; Prostokątne 3","204; Hoekig 3","204 ; Carré 3"]
["206 ; Carré 4",{"$nulls":7},"206; Hranaté 4","206; Rectangular 4","206; eckig 4","206; Prostokątne 4","206; Hoekig 4","206 ; Carré 4"]
["210 ; Carré 7",{"$nulls":7},"210; Hranaté 7","210; Rectangular 7","210; eckig 7","210; Prostokątne 7","210; Hoekig 7","210 ; Carré 7"]
["208 ; Carré 5",{"$nulls":7},"208; Hranaté 5","208; Rectangular 5","208; eckig 5","208; Prostokątne 5","208; Hoekig 5","208 ; Carré 5"]
["202 ; Carré 10",{"$nulls":7},"202; Hranaté 10","202; Rectangular 10","202; eckig 10","202; Prostokątne 10","202; Hoekig 10","202 ; Carré 10"]
["219 ; Carré inox",{"$nulls":7},"219; Hranaté nerez","219; Rectangular stainless steel","219; eckig,  Edelstahl","219; Prostokątne nierdz.","219; Hoekig roestvrij","219 ; Carré inox"]
["Section Full Vision",{"$nulls":7},"Full Vision sekce","Full Visions sections","Alu-Rahmen Sektion","Full Vision sekcje panoramiczne","Full Vision-sectie","Section Full Vision"]
["Section isolée",{"$nulls":7},"Zateplené sekce","Insulated sections","Alu-Sektion mit isolierter Füllung","Ocieplone sekcje","Geïsoleerde sectie","Section isolée"]
["Séction avec métal déployé",{"$nulls":7},"Sekce s tahokovem","Expanded mesh sections","Streckgitter","Sekcje z siatką aluminiową","Sectie met strekmetaal","Séction avec métal déployé"]
["Barrières, barrière verrouillables",{"$nulls":7},"Závory, uzamykatelné závory","Slide bolts, cylinder locks","Verschließbarer Griff","Rygle, zamki","Grendels, afsluitbare grendels","Barrières, barrière verrouillables"]
["490 ; Barrière",{"$nulls":7},"490; Závora","490; Slide bolt","490; Schubriegel","490; Rygiel","490; Grendel","490 ; Barrière"]
["491 ; Barrière",{"$nulls":7},"491; Závora","491; Slide bolt","491; Schubriegel","491; Rygiel","491; Grendel","491 ; Barrière"]
["492B ; Barrière verrouillable",{"$nulls":7},"492B; Uzamykatelná závora","492B; Cylinder lock","492B; verschließbarer Griff","492B; Zamek","492B; Afsluitbare grendel","492B ; Barrière verrouillable"]
["493B Barrière verrouillable",{"$nulls":7},"493B Uzamykatelná závora","493B; Cylinder lock","493B verschließbarer Griff","493B; Zamek","493B; Afsluitbare grendel","493B Barrière verrouillable"]
["495 ; Barrière verrouillable",{"$nulls":7},"495; Uzamykatelná závora","495; Cylinder lock","495; verschließbarer Griff","495; Zamek","492; Afsluitbare grendel","495 ; Barrière verrouillable"]
["497A ; Barrière verrouillable",{"$nulls":7},"497A; Uzamykatelná závora","497A; Cylinder lock","497A; verschließbarer Griff","497A; Zamek","497A; Afsluitbare grendel","497A ; Barrière verrouillable"]
["497B ; Barrière verrouillable",{"$nulls":7},"497B; Uzamykatelná závora","497B; Cylinder lock","497B; verschließbarer Griff","497B; Zamek","497B; Afsluitbare grendel","497B ; Barrière verrouillable"]
["498 ; Barrière verrouillable",{"$nulls":7},"498; Uzamykatelná závora","498; Cylinder lock","498; verschließbarer Griff","498; Zamek","492; Afsluitbare grendel","498 ; Barrière verrouillable"]
["499B ; Barrière verrouillable",{"$nulls":7},"499B; Uzamykatelná závora","499B; Cylinder lock","499B; verschließbarer Griff","499B; Zamek","499B; Afsluitbare grendel","499B ; Barrière verrouillable"]
["499S ; Barrière verrouillable",{"$nulls":7},"499S; Uzamykatelná závora","499S; Cylinder lock","499S; verschließbarer Griff","499S; Zamek","499S; Afsluitbare grendel","499S ; Barrière verrouillable"]
["Poignées",{"$nulls":7},"Madla","Handles (grips)","Handgriffe","Uchwyty","Handgrepen","Poignées"]
["466 ; Poignée unilatérale",{"$nulls":7},"466; Jednostranné madlo","466; Handgrip single - sided","466; Handgriff - einseitig","466; Uchwyt jednostronny","466; Eenzijdige handgreep","466 ; Poignée unilatérale"]
["460 ; Poignée bilatérale",{"$nulls":7},"460; Oboustranné madlo","460; Handgrip double-sided","460; Handgriff - beiderseits","460; Uchwyt dwustronny","460; Tweezijdige handgreep","460 ; Poignée bilatérale"]
["463 ; poignée bilatérale",{"$nulls":7},"463; Oboustranné madlo","463; Handgrip double-sided","463; Handgriff - beiderseits","463; Uchwyt dwustronny","463; Tweezijdige handgreep","463 ; poignée bilatérale"]
["467 ; Poignée bilatérale",{"$nulls":7},"467; Oboustranné madlo","467; Handgrip double-sided","467; Handgriff - beiderseits","467; Uchwyt dwustronny","467; Tweezijdige handgreep","467 ; Poignée bilatérale"]
["468 ; Poignée bilatérale",{"$nulls":7},"468; Oboustranné madlo","468; Handgrip double-sided","468; Handgriff - beiderseits","468; Uchwyt dwustronny","468; Tweezijdige handgreep","468 ; Poignée bilatérale"]
["469 ; Poignée bilatérale",{"$nulls":7},"469; Oboustranné madlo","469; Handgrip double-sided","469; Handgriff - beiderseits","469; Uchwyt dwustronny","469; Tweezijdige handgreep","469 ; Poignée bilatérale"]
["469S ; Poignée bilatérale",{"$nulls":7},"469S; Oboustranné madlo","469S; Handgrip double-sided","469S; Handgriff - beiderseits","469S; Uchwyt dwustronny","469S; Tweezijdige handgreep","469S ; Poignée bilatérale"]
["Type de vitrage",{"$nulls":7},"Typ prosklení","Type of glazing","Verglasungstyp","Rodzaj przeszklenia","Type beglazing","Type de vitrage"]
["Type de section isolée",{"$nulls":7},"Typ zateplené sekce","Type of insulated section","Typ der isolierten Sektion","Rodzaj ocieplonej sekcji","Type geïsoleerde sectie","Type de section isolée"]
["Type de maillage",{"$nulls":7},"Typ tahokovu","Type of expanded mesh","Typ der Streckgitter","Rodzaj siatki aluminiowej","Type strekmetaal","Type de maillage"]
["Type de fenêtre",{"$nulls":7},"Typ okna","Type of window","Typ der Fenster","Rodzaj okna","Type venster","Type de fenêtre"]
["250 ; Double vitrage SAN UV",{"$nulls":7},"250; Dvoustěnné prosklení SAN UV","250; Double wall glazing SAN UV","250; Doppelverglasung SAN UV","250; Podwójne przeszklenie SAN UV","250; Dubbelwandige beglazing SAN UV","250 ; Double vitrage SAN UV"]
["220 ; Simple vitrage SAN UV",{"$nulls":7},"220; Jednostěnné prosklení SAN UV","220; Single wall glazing SAN UV","220; Einfachverglasung SAN UV","220; Pojedyncze przeszklenie SAN UV","220; Enkelwandige beglazing SAN UV","220 ; Simple vitrage SAN UV"]
["260 ; Double vitrage en polycarbonate",{"$nulls":7},"260; Dvoustěnné prosklení polykarbonát","260; Double wall glazing polycarbonate","260; Doppelverglasung Polycarbonat","260;Podwójne przeszklenie poliwęglan","260; Dubbelwandige polycarbonaatbeglazing","260 ; Double vitrage en polycarbonate"]
["230 ; Simple vitrage en polycarbonate",{"$nulls":7},"230; Jednostěnné prosklení polykarbonát","230; Single wall glazing polycarbonate","230; Einfachverglasung Polycarbonat","230; Pojedyncze przeszklenie poliwęglan","230; Enkelwandige polycarbonaatbeglazing","230 ; Simple vitrage en polycarbonate"]
["250.10 ; Double vitrage SAN UV, 1x ANTI SCRATCH",{"$nulls":7},"250.10; Dvoustěnné prosklení SAN UV, 1x ANTI SCRATCH","250.10; Double wall glazing SAN UV, 1x ANTI SCRATCH","250.10; Einfachverglasung SAN UV, 1x kratzfest","250.10; Podwójne przeszklenie SAN UV, 1x ANTI SCRATCH","250.10; Dubbelwandige beglazing SAN UV, 1x ANTI SCRATCH","250.10 ; Double vitrage SAN UV, 1x ANTI SCRATCH"]
["250.20 ; Double vitrage SAN UV, 2x ANTI SCRATCH",{"$nulls":7},"250.20; Dvoustěnné prosklení SAN UV, 2x ANTI SCRATCH","250.20; Double wall glazing SAN UV, 2x ANTI SCRATCH","250.20; Doppelverglasung SAN UV, 2x kratzfest","251.20; Podwójne przeszklenie SAN UV, 2x ANTI SCRATCH","250.10; Dubbelwandige beglazing SAN UV, 2x ANTI SCRATCH","250.20 ; Double vitrage SAN UV, 2x ANTI SCRATCH"]
["250.Co ; Double vitrage SAN UV ; coloré",{"$nulls":7},"250.Co; Dvoustěnné prosklení SAN UV; barevné","250.Co; Double wall glazing SAN UV with coloured panes","250.Co; farbige Doppelverglasung SAN UV ","252.Co; Podwójne przeszklenie SAN UV, kolorowe","250.Co; Dubbelwandige beglazing SAN UV; kleurig","250.Co ; Double vitrage SAN UV ; coloré"]
["270 ; Panneaux en aluminium isolé stucco",{"$nulls":7},"270; Zateplené hliníkové výplně stucco","270; Insulated aluminium stucco fillings","270; Isolierte Alu-Stucco Füllung","270;Ocieplone wypełnienie aluminiowe stucco","270; Geïsoleerde aluminium voering stucwerk","270 ; Panneaux en aluminium isolé stucco"]
["270.20 ; Panneaux en aluminium isolé hladké",{"$nulls":7},"270.20; Zateplené hliníkové výplně hladké","270.20; Insulated aluminium flat fillings","270.20; Isolierte Alu-Glatte Füllung","270.20; Ocieplone wypełnienie aluminiowe gładkie","270; Geïsoleerde aluminium voering glad","270.20 ; Panneaux en aluminium isolé hladké"]
["280 ; Tôle de choc, œillet 16/8",{"$nulls":7},"280; Tahokov, oko 16/8","280; Expanded mesh, eye size 16/8","280; Streckgitter 16/8","280; Siatka aluminiowa, oko 16/8","280; Strekmetaal, oog 16/8","280 ; Tôle de choc, œillet 16/8"]
["280 ; Tôle de choc, œillet 22/12",{"$nulls":7},"280; Tahokov, oko 22/12","280; Expanded mesh, eye size 22/12","280; Streckgitter 22/12","280; Siatka aluminiowa, oko 16/9","280; Strekmetaal, oog 22/12","280 ; Tôle de choc, œillet 22/12"]
["Commande",{"$nulls":7},"Ovládání","Control","Bedienung","Sterowanie","Bediening","Commande"]
[{"$f":"VLOOKUP(I130,I:N,$A$1,FALSE)","v":"Manuelle"},{"$nulls":7},"Manuální","Manual","Handbed.","Ręczne","Handmatig","Manuelle"]
["Transmission à chaîne 1:4",{"$nulls":7},"Řetězový převod 1:4","Chain hoist 1:4","Haspelkette 1:4","Przekładnia łańcuchowa 1:4","Kettingtransmissie 1: 4","Transmission à chaîne 1:4"]
["Moteur",{"$nulls":7},"Motor","Motor","Antrieb","Silnik","Motor","Moteur"]
["Le moteur est fourni par le client",{"$nulls":7},"Motor dodává zákazník","Motor supplied by customer","Antrieb bauseits geliefert","Silnik dostarcza klient","De klant levert de motor","Le moteur est fourni par le client"]
["Type de moteur",{"$nulls":7},"Typ motoru","Type of motor","Antrieb-Typ","Rodzaj silnika","Motortype","Type de moteur"]
["Accessoires du moteur",{"$nulls":7},"Příslušenství motoru","Accessories for motor","Zubehör zum Antrieb","Akcesoria do silnika","Motoraccessoires","Accessoires du moteur"]
["Mode de commande",{"$nulls":7},"Režim ovládání","Operation","Steuerung","Tryb sterowania","Bedieningsmodus","Mode de commande"]
["Totman",{"$nulls":7},"Totman","Dead man","TOTMAN","Totman","Totman","Totman"]
["Gestion par impulsions",{"$nulls":7},"Impulsní řízení","Impuls","IMPULS","Impuls","impulsbesturing","Gestion par impulsions"]
["Commande à distance",{"$nulls":7},"Dálkové ovládání","Remote control","FUNK","Zdalne sterowanie","Afstandsbediening","Commande à distance"]
["Ferrures inférieures",{"$nulls":7},"Spodní kování","Bottom bracket","Bodenkonsole","Okucia dolne","Onderste beslag","Ferrures inférieures"]
["En aluminium",{"$nulls":7},"Hliníkové","Aluminium","Alu-Bodenkonsole","Aluminiowe","Aluminium","En aluminium"]
["En acier, LHR-C, max. 160 kg",{"$nulls":7},"Ocelové, LHR-C, max. 160 kg","Galv. steel, LHR-C, max. 160 kg","Stahl-Konsole, LHR-C bis 160kg","Stal., LHR-C, max 160 kg","Staal, LHR-C, max. 160 kg","En acier, LHR-C, max. 160 kg"]
["Parachutes câble",{"$nulls":7},"Pojistka při prasknutí lanka","Cable break security device","Seilbruchsicherung","Bezpiecznik przy pęknięciu linki","Zekering tegen kabelbreuk","Parachutes câble"]
["Renforts",{"$nulls":7},"Výztuhy","Reinforcing struts","Versteifungen","Wzmocnienia","Versterkingen","Renforts"]
["Parachute ressort",{"$nulls":7},"Pojistka při prasknutí pružiny","Spring break device","Federbruchsicherung","Bezpiecznik przy pęknięciu sprężyny","Zekering tegen veerbreuk","Parachute ressort"]
["Unité de comm. IP 54",{"$nulls":7},"Řídící jednotka IP 54","Control  box IP 54","Steuerung IP54","Jedn. sterująca IP 54","Besturingseenh. IP 54","Unité de comm. IP 54"]
["Unité de comm. IP 65",{"$nulls":7},"Řídící jednotka IP 65","Control  box IP 65","Steuerung IP65","Jedn. sterująca IP 65","Besturingseenh. IP 65","Unité de comm. IP 65"]
["Convertisseur de fréquence",{"$nulls":7},"Frekvenční měnič","Frequency converter","Frequenzumrichter","Przemiennik częstotliwości","Frequentie-omvormer","Convertisseur de fréquence"]
["Spirale câble",{"$nulls":7},"Spirál kabel","Helix (spiral) cable","Spiralkabel","Kabel spiralny","Spiraalkabel","Spirale câble"]
["Transfert sans fil (WSD)",{"$nulls":7},"Bezdrátový přenos (WSD)","Wireless transmition (WSD)","WDS-Modul","Transmisja bezprzewodowa (WSD)","Draadloze transmissie (WSD)","Transfert sans fil (WSD)"]
["Boutons de commande à distance",{"$nulls":7},"Dálkové ovladače","Remote controls","Handsender","Piloty","Afstandsbediening","Boutons de commande à distance"]
["à 2 canaux",{"$nulls":7},"2kanálové","2-channels","2-Kanal","2-kanałowe","2 kanaals","à 2 canaux"]
["à 3 canaux",{"$nulls":7},"3kanálové","3-channels","3-Kanal","3-kanałowe","3 kanaals","à 3 canaux"]
["à 4 canaux",{"$nulls":7},"4kanálové","4-channels","4-Kanal","4-kanałowe","4 kanaals","à 4 canaux"]
["Cellules photo réfléchissante extérieure",{"$nulls":7},"Externí reflexní fotobuňka","External reflex photocell","Externe Fotozelle","Fotokomórka zewn. reflex","Externe reflecterende fotocel","Cellules photo réfléchissante extérieure"]
["Triple bouton extérieur",{"$nulls":7},"Externí trojtlačítko","External tripple button switch box","Extrerner drei-fach-Taster","Trójprzycisk zewn.","externe driedubbele knop","Triple bouton extérieur"]
["Phare",{"$nulls":7},"Semafor","Traffic light","Ampel","Światła sygnalizacyjne","Seinpaal","Phare"]
["Unité de commande du phare A800",{"$nulls":7},"Řídící jednotka semaforu A800","Control unit for traffic lights A800","Steuerung für Ampelsteuerung A800","Jednostka sterująca świateł sygn. A800","Besturingseenheid seinpaal A800","Unité de commande du phare A800"]
["Lampe rouge",{"$nulls":7},"Červené světlo","Red light","Licht-rot","Czerwone światło","Rood licht","Lampe rouge"]
["Lampe verte",{"$nulls":7},"Zelené světlo","Green light","Licht-grün","Zielone światło","Groen licht","Lampe verte"]
["Lampe rouge + verte",{"$nulls":7},"Červené + zelené světlo","Red + green light","Licht-rot+grün","Czerwone + zielone światło","Rood + groen licht","Lampe rouge + verte"]
["Espace réservé à vos commentaires",{"$nulls":7},"Prostor pro Vaše poznámky","Your notes","Bemerkungen","Twoje notatki","Ruimte voor uw notities","Espace réservé à vos commentaires"]
["Grilles de ventilation",{"$nulls":7},"Větrací mřížky","Air grates","Lüftungsgitter","Kratki wentylacyjne","Ventilatieroosters","Grilles de ventilation"]
["Noir/blanc",{"$nulls":7},"Černá/bílá","Black/white","Scharz/weiß","Czarna/biała","Zwart/wit","Noir/blanc"]
["Blanc/blanc",{"$nulls":7},"Bílá/bílá","White/white","Weiß/weiß","Biała/biała","Wit/wit","Blanc/blanc"]
["Noyer/9010",{"$nulls":7},"Ořech/9010","Nut/9010","Nuss/9010","Orzech/9010","Notenhout/9010","Noyer/9010"]
["Noyer/9016",{"$nulls":7},"Ořech/9016","Nut/9016","Nuss/9016","Orzech/9016","Notenhout/9016","Noyer/9016"]
["Chêne doré/9010",{"$nulls":7},"Zlatý dub/9010","Golden oak/9010","Eiche Golden/9010","Złoty dąb/9010","Gouden eik/9010","Chêne doré/9010"]
["Chêne doré/9016",{"$nulls":7},"Zlatý dub/9016","Golden oak/9016","Eiche Golden/9016","Złoty dąb/9016","Gouden eik/9016","Chêne doré/9016"]
["9010/9010",{"$nulls":7},"9010/9010","9010/9010","9010/9010","9010/9010","9010/9010","9010/9010"]
["Acajou/9010",{"$nulls":7},"Mahagon/9010","Mahagony/9010","Mahagony/9010","Mahoń/9010","Mahonie/9010","Acajou/9010"]
["Acajou/9016",{"$nulls":7},"Mahagon/9016","Mahagony/9016","Mahagony/9016","Mahoń/9016","Mahonie/9016","Acajou/9016"]
["9016/9010",{"$nulls":7},"9016/9010","9016/9010","9016/9010","9016/9010","9016/9010","9016/9010"]
["Chêne foncé/9010",{"$nulls":7},"Tmavý dub/9010","Dark oak/9010","Eiche Dunkel/9010","Ciemny dąb/9010","Donkere eik/9010","Chêne foncé/9010"]
["Chêne foncé/9016",{"$nulls":7},"Tmavý dub/9016","Dark oak/9016","Eiche Dunkel/9016","Ciemny dąb/9016","Donkere eik/9016","Chêne foncé/9016"]
["Commutateurs à clé, clavier",{"$nulls":7},"Klíčové spínače, klávesnice","Key contacts and keyboards","Schlüsselschalter, Tastaturen","Przełączniki kluczykowe, klawiatury","Sleutelschakelaars, toetsenborden","Commutateurs à clé, clavier"]
["856 ; Clavier à code DigiCode",{"$nulls":7},"856; Kódová klávesnice DigiCode","856; Code keyboard DigiCode","856; Kodentaster - DigiCode","856; Klawiatura kodowa DigiCode","856; Codepaneel Digicode","856 ; Clavier à code DigiCode"]
["860 ; Double bouton DuoControl",{"$nulls":7},"860; Dvoutlačítko DuoControl","860; Wall remote control DuoControl","860; Wand-Doppeltaster -  DuoControl","860; Dwuprzycisk DuoControl","860; Dubbel knop DuoControl","860 ; Double bouton DuoControl"]
["855 ; Commutateur à clé en surface",{"$nulls":7},"855; Klíčový spínač na omítku","855; Key contact surface mounting","855; Schlüsselschalter auf Putz","855; Przełącznik kluczykowy na tynk","855; Sleutelschakelaar op de bepleistering","855 ; Commutateur à clé en surface"]
["858 ; Commutateurs à clé encastré",{"$nulls":7},"858; Klíčový spínač pod omítku","858; Key contact concealed mounting","858; Schlüsselschalter unter Putz","858; Przełącznik kluczykowy pod tynk","858; Sleutelschakelaar onder de bepleistering","858 ; Commutateurs à clé encastré"]
["Récepteur extérieur",{"$nulls":7},"Externí přijímač","External receiver","Externer Empfänger","Odbiornik zewn.","Externe ontvanger","Récepteur extérieur"]
["Cellule photo",{"$nulls":7},"Fotobuňka","Light barrier","Fotozelle","Fotokomórka","Fotocel","Cellule photo"]
["Hauteur générale [mm]",{"$nulls":7},"Obecná výška [mm]","General height [mm]","Allgemeine Höhe","Wysokość ogólna [mm]","Algemene hoogte [mm]","Hauteur générale [mm]"]
["Tôles de protection",{"$nulls":7},"Krycí plechy","Covers for track","Verkleidungsbleche","Osłona prowadzenia","Dekplaten","Tôles de protection"]
["Guide vertical",{"$nulls":7},"Svislé vedení","Vertical track","Senkrechte Schienen","Pionowe prowadzenie","Verticale geleiding","Guide vertical"]
["Profilé horizontal",{"$nulls":7},"Vodorovný profil","Horizontal cover","Waagrechtes Profil","Profil poziomy","Horizontaal profiel","Profilé horizontal"]
["Tôles en « J »",{"$nulls":7},"\"J\" plechy","\"J\" covers","\"J\" Profil","\"J\" osłony","J-platen","Tôles en « J »"]
["Tôles en « L »",{"$nulls":7},"\"L\" plechy","\"L\" covers","\"L\" Profile","\"L\" osłony","L-platen","Tôles en « L »"]
["Tôle en « L »",{"$nulls":7},"\"L\" plech","\"L\" cover","\"L\" Profil","\"L\" osłona","L-plaat","Tôle en « L »"]
["Second profilé de linteau",{"$nulls":7},"Druhý překladový profil","2nd lintel profile","Zweites Sturzprofil","Drugi profil nadproża","Tweede draagbalkprofiel","Second profilé de linteau"]
["Déblocage extérieur",{"$nulls":7},"Externí odblokování","External release","Externe Entriegelung","Odryglowanie zewn.","Externe deblokkering","Déblocage extérieur"]
["avec verrou cylindrique et capuchon",{"$nulls":7},"s cylindrickým zámkem a krytkou","Key cylinder and cover","Mit Profilzylinder und einer Kappe","Z zamkiem cylindr. I osłoną","met cilinderslot en afdekking","avec verrou cylindrique et capuchon"]
["avec verrou rond",{"$nulls":7},"s kulatým zámkem","Round key cylinder","Mit Rundzylinder","Z okrągłym zamkiem cylindr.","met rond slot","avec verrou rond"]
[{"$f":"VLOOKUP(I194,I:N,$A$1,FALSE)","v":"Arbre préassemblé"},{"$nulls":7},"Předmontovaná hřídel","Preassembled shaft","Vormontierte Welle","Montaż wstępny wału","Pre-assemblage van de as","Arbre préassemblé"]
[", jusqu'à 4000x4000mm",{"$nulls":7},", do 4000x4000mm",", up to 4000x4000",", bis 4000x4000mm",", do 4000x4000mm",", tot 4000x4000mm",", jusqu'à 4000x4000mm"]
["Cornière de soutien",{"$nulls":7},"Zavěšení vedení","Hanging profiles","Befestigung der waagrechten Schienen","Profile wiszące","Geperforeerde hoeklijn","Cornière de soutien"]
["30x30, Équerre percée, orifices ronds",{"$nulls":7},"30x30, Děrov. úhelník, kulaté otv.","30x30, Perfer. angle, round holes","30x30, Anhängewinkel mit Rund-Löchern","30x30, Kątownik perf., okrągłe otw.","30x30, Geperforeerde winkelhaak, ronde openingen","30x30, Équerre percée, orifices ronds"]
["30x30, Équerre percée, orifices ovales",{"$nulls":7},"30x30, Děrov. úhelník, oválné otv.","30x30, Perfer. angle, oval holes","30x30, Anhängewinkel mit Oval-Löchern","30x30, Kątownik perf., owalne otw.","30x30, Geperforeerde winkelhaak, ronde openingen","30x30, Équerre percée, orifices ovales"]
["50x50, Équerre percée, orifices ronds",{"$nulls":7},"50x50, Děrov. úhelník, kulaté otv.","50x50, Perfer. angle, round holes","50x50, Anhängewinkel mit Rund-Löchern","50x50, Kątownik perf., okrągłe otw.","50x50, Geperforeerde winkelhaak, ronde openingen","50x50, Équerre percée, orifices ronds"]
["50x50, Équerre percée, orifices ovales",{"$nulls":7},"50x50, Děrov. úhelník, oválné otv.","50x50, Perfer. angle, oval holes","50x50, Anhängewinkel mit Oval-Löchern","50x50, Kątownik perf., owalne otw.","50x50, Geperforeerde winkelhaak, ronde openingen","50x50, Équerre percée, orifices ovales"]
["Profilé en « L » (uniquement pour LHF-C, LHR-C)",{"$nulls":7},"\"L\" profil (pouze LHF-C, LHR-C)","\"L\" profile (LHF-C, LHR-C only)","\"L\" Profile (nur für LHF-C, LHR-C)","„L” profil (tylko LHF-C, LHR-C)","L-profiel (alleen LHF-C, LHR-C)","Profilé en « L » (uniquement pour LHF-C, LHR-C)"]
["Profilés en « L »",{"$nulls":7},"\"L\" profily","\"L\" profiles","\"L\" Profile","„L” profile","L-profielen","Profilés en « L »"]
["Hauteur ",{"$nulls":7},"Obecná","General","Allgemeine","Ogólna ","Algemeen","Hauteur "]
["générale [mm]",{"$nulls":7},"výška [mm]","height [mm]","Höhe [mm]","Wysokość [mm]","Hoogte [mm]","générale [mm]"]
["Hauteur jusqu’au bord inférieur du linteau [mm]",{"$nulls":7},"Výška ke spodní hraně překladového profilu [mm]","Height to bottom edge of lintel profile [mm]","Höhe zur unteren Kante des Sturzprofiles [mm]","Wysokość do dolnej krawędzi profilu nadproża [mm]","Hoogte van de onderrand van het draagbalkprofiel [mm]","Hauteur jusqu’au bord inférieur du linteau [mm]"]
["Hauteur du plafond [mm]",{"$nulls":7},"Výška stropu [mm]","Height of ceiling [mm]","Deckenhöhe [mm]","Wysokość stropu [mm]","Hoogte van het plafond [mm]","Hauteur du plafond [mm]"]
["Profil de linteau",{"$nulls":7},"Překladový profil","Lintel profile","Sturzprofil","Profil nadproża","Draagbalkprofiel","Profil de linteau"]
["Peinture du profil de linteau",{"$nulls":7},"Lakování překladového profilu","Painting of lintel profile","Lackierung des Sturzprofils","Lakierowanie profilu nadproża","Lakken van Draagbalkprofiel","Peinture du profil de linteau"]
["Peinture des tôles de protection",{"$nulls":7},"Lakování krycích plechů","Painting of tracks' covers","Lackierung der Verkleidungsbleche","Lakierowanie osłon","Lakken van dekplatten","Peinture des tôles de protection"]
["Situation standard",{"$nulls":7},"Standardní situace","Standard situation","Standardsituation","Sytuacja standardowa","Standaard situatie","Situation standard"]
["Situation non standard",{"$nulls":7},"Nestandardní situace","Non-standard situation","Ungewöhnliche Situation","Sytuacja niestandardowa","Atypische situatie","Situation non standard"]
["Joint de rupture thermique",{"$nulls":7},"Těsnění s přerušeným tepelným mostem","Termal break sealing","Thermisch getrennte Dichtung","Uszczelnienie z mostkiem cieplnym","Thermische onderbreking afdichting","Joint de rupture thermique"]
["Commande sur la base des dimensions de l’ORIFICE",{"$nulls":7},"Objednávka na základě rozměrů OTVORU","Order based on OPENING dimensions","Bestellung aufgrund der Öffnungsmaße","Zamówienie na podstawie wymiarów OTWORU","Bestelling op basis van de maten van de OPENING","Commande sur la base des dimensions de l’ORIFICE"]
["Commande sur la base des dimensions du CADRE",{"$nulls":7},"Objednávka na základě vnějšího rozměru RÁMU","Order based on outer FRAME dimensions","Bestellung  aufgrund der Rahmenaußenmaße","Zamówienie na podstawie zewnętrznych wymiarów RAMY","Bestelling op basis van de maten van het FRAME","Commande sur la base des dimensions du CADRE"]
["Largeur du cadre",{"$nulls":7},"Šířka rámu","Width of frame","Rahmenbreite","Szerokość ramy","Framebreedte","Largeur du cadre"]
["Hauteur du cadre",{"$nulls":7},"Výška rámu","Height of frame","Rahmenhöhe","Wysokość ramy","Framehoogte","Hauteur du cadre"]
["2LD 01",{"$nulls":7},"2LD 01","2LD 01","2LD 01","2LD 01","2LD 01","2LD 01"]
["2LD 02",{"$nulls":7},"2LD 02","2LD 02","2LD 02","2LD 02","2LD 02","2LD 02"]
["2LD 03",{"$nulls":7},"2LD 03","2LD 03","2LD 03","2LD 03","2LD 03","2LD 03"]
["2LD 04",{"$nulls":7},"2LD 04","2LD 04","2LD 04","2LD 04","2LD 04","2LD 04"]
["2LD 05",{"$nulls":7},"2LD 05","2LD 05","2LD 05","2LD 05","2LD 05","2LD 05"]
["2LD 06",{"$nulls":7},"2LD 06","2LD 06","2LD 06","2LD 06","2LD 06","2LD 06"]
["2LD 07",{"$nulls":7},"2LD 07","2LD 07","2LD 07","2LD 07","2LD 07","2LD 07"]
["2LD 08",{"$nulls":7},"2LD 08","2LD 08","2LD 08","2LD 08","2LD 08","2LD 08"]
["2LD 09",{"$nulls":7},"2LD 09","2LD 09","2LD 09","2LD 09","2LD 09","2LD 09"]
["2LD 10",{"$nulls":7},"2LD 10","2LD 10","2LD 10","2LD 10","2LD 10","2LD 10"]
["2LD 11",{"$nulls":7},"2LD 11","2LD 11","2LD 11","2LD 11","2LD 11","2LD 11"]
["2LD 12",{"$nulls":7},"2LD 12","2LD 12","2LD 12","2LD 12","2LD 12","2LD 12"]
["Emplacement : ",{"$nulls":7},"Umístění: ","Position: ","Platzierung:","Umieszczenie:","Plaatsing:","Emplacement : "]
["dans l’orifice",{"$nulls":7},"do otvoru","in the opening","in die Öffnung","do otworu","in de opening","dans l’orifice"]
["derrière l’orifice",{"$nulls":7},"za otvor","behind the opening","hinter die Öffnung","za otwór","achter de opening","derrière l’orifice"]
["devant l’orifice",{"$nulls":7},"před otvor","front of opening","vor die Öffnung","przed otwór","vóór de opening","devant l’orifice"]
[": vers l’extérieur",{"$nulls":7},": ven",": out",": außen",": na zewnątrz",": naar buiten",": vers l’extérieur"]
[": vers l’intérieur",{"$nulls":7},": dovnitř",": in",": innen",": do wewnątrz",": naar binnen",": vers l’intérieur"]
["Poign.: ",{"$nulls":7},"Klika:","Handle: ","Klinke: ","Klamka: ","Deurkruk:","Poign.: "]
["d. le batt. de gauche",{"$nulls":7},"v levém křídle","in left leaf","im linken Flügel","w lewym skrz.","in de linkerdeur","d. le batt. de gauche"]
["d. le batt. de droite",{"$nulls":7},"v pravém křídle","in right leaf","im rechten Flügel","w prawym skrz.","in de rechterdeur","d. le batt. de droite"]
["Peinture des profilés du cadre et des battants",{"$nulls":7},"Lakování profilů rámu a křídel","Painting of frame's and leaves' profiles","Lackierung der Rahmen- und Flügelprofile","Lakierowanie profili ramy i skrzydeł","Kleur van frame- en vleugelprofielen","Peinture des profilés du cadre et des battants"]
["Peinture des profilés du cadre et du battant",{"$nulls":7},"Lakování profilů rámu a křídla","Painting of frame's and leaf's profiles","Lackierung der Rahmen- und Flügelprofile","Lakierowanie profili ramy i skrzydła","Kleur van frame- en vleugelprofielen","Peinture des profilés du cadre et du battant"]
["Peinture des profilés du cadre et du battant",{"$nulls":7},"Lakování profilů rámu, křídla, nadsvětlíku","Painting of frame's, leaf's and fixed top panel profiles","Lackierung der Rahmen- und Flügel- und Oberlichtprofile","Lakierowanie profili ramy, skrzydła i nadświetla","Kleur van frame-, vleugel- en bovenprofielen","Peinture des profilés du cadre et du battant"]
["Peinture des charnières (quand les profils sont laqués)",{"$nulls":7},"Lakování pantů (pouze při lakování příslušné strany profilů)","Painting of hinges (only available if hinged side of profiles is painted)","Lackierung der Bänder (ist nur bei Rahmenlackierung der Bänderseite möglich)","Lakierowanie zawiasów (tylko przy malowaniu odpowiedniej strony profili)","Verven scharnieren (alleen mogelijk als scharnierzijde van profielen is geverfd)","Peinture des charnières (quand les profils sont laqués)"]
["Peintures des joints de vitrage (quand les profils intérieurs sont laqués)",{"$nulls":7},"Lakování zasklívacích lišt (pouze při lakování vnitřní strany profilů křídla)","Painting of glazing lathes (only available if inner side of profiles is painted)","Lackierung der Alu-Leisten (ist nur bei Innen-Rahmenlackierung möglich)","Lakierowanie listew przyszybowych (tylko przy malowaniu wewnętrznych profili skrzydła)","Verven beglazingsstrips (alleen mogelijk als binnenkant van de profielen is geverfd)","Peintures des joints de vitrage (quand les profils intérieurs sont laqués)"]
["Type d’arrêt de porte",{"$nulls":7},"Typ zarážky","Door stopper","Typ der Verriegelung","Rodzaj ogranicznika","Type vanger","Type d’arrêt de porte"]
["Type d´arrêt de battant ouvert",{"$nulls":7},"Aretace otevřeného křídla","Securing of opened leaf","Fixierung des Gehflügels","Blokowanie otwartego  skrzydła","Vergrendeling geopend deurblad","Type d´arrêt de battant ouvert"]
["Sans arrêt (standard)",{"$nulls":7},"Bez aretace (standard)","No securing (default option)","Ohne Fixierung (Standard)","Bez blokowania (standard)","Geen vergrendeling (standaard optie)","Sans arrêt (standard)"]
["Arrêt de porte coulissant 180 mm",{"$nulls":7},"Výsuvný zášlap 180mm","Sliding stopper 180mm","Feststellfuß - ausziehbar 180mm","Wysuwany ogranicznik","Uitschuifbare voetgrendel 180 mm","Arrêt de porte coulissant 180 mm"]
["Arrêt de porte basculant 400 mm",{"$nulls":7},"Výklopný zášlap 400mm","Tipping stopper 400 mm","Feststellfuß - aufklappbar 400mm","Składany ogranicznik","Uitklapbare voetgrendel 400mm","Arrêt de porte basculant 400 mm"]
["Mode d’ancrage",{"$nulls":7},"Způsob kotvení","Style of installation","Methode der Verankerung","Sposób instalacji","Wijze van verankering","Mode d’ancrage"]
["À l’aide d’équerres (standard)",{"$nulls":7},"Pomocí úhelníků (standard)","By angle brackets (default option)","Mit dem Winkelanker","Za pomocą kątowników (standard)","Met winkelhaken (standaard)","À l’aide d’équerres (standard)"]
["Plaque d'ancrage (standard)",{"$nulls":7},"Kotvící plech (standard)","Anchoring strips (default option)","Befestigungswinkel (Standard)","Płyta kotwiąca","Verankeringstrips (standaard optie)","Plaque d'ancrage (standard)"]
["Au travers du cadre (uniquement 2LD 01, 02, 03, 04)",{"$nulls":7},"Skrz rám (pouze 2KV 01, 02, 03, 04)","Throught frame (only 2LD 01, 02, 03, 04)","Durch den Rahmen (nur 2LD 01, 02, 03, 04)","Przez ramę (tylko 2LD 01, 02, 03, 04)","Door het frame (alleen 2LD 01, 02, 03, 04)","Au travers du cadre (uniquement 2LD 01, 02, 03, 04)"]
["Au travers du cadre (uniquement MD 01, 02, 03, 04)",{"$nulls":7},"Skrz rám (pouze MD 01, 02, 03, 04)","Throught frame (only MD 01, 02, 03, 04)","Durch den Rahmen (nur MD 01, 02, 03, 04)","Przez ramę (tylko MD 01, 02, 03, 04)","Door het frame (alleen MD, 01, 02, 03, 04)","Au travers du cadre (uniquement MD 01, 02, 03, 04)"]
["Au travers du cadre",{"$nulls":7},"Skrz rám","Throught frame","Durch den Rahmen","Przez ramę","Door het frame","Au travers du cadre"]
["Symétrie des battants",{"$nulls":7},"Souměrnost křídel","Symmetry of leaves","Torflügelsymmetrie","Symetria skrzydeł","Symmetrie van de vleugels","Symétrie des battants"]
["Oui (les battants ont la même largeur)",{"$nulls":7},"Ano (křídla stejně široká)","Yes, equal width of both leaves","Ja, Torflügel haben gl. Breite","Tak (skrzydła o tej samej szerokości)","Ja (deurbladen even breed)","Oui (les battants ont la même largeur)"]
["Non (chaque batt. a une largeur diff.)",{"$nulls":7},"Ne (křídla s různou šířkou)","No, leaves with different width","Nein, Torfl. haben versch. Breite","Nie (skrzydła o różnej szerokości)","Nee (deurbl. van verschill. breedtes)","Non (chaque batt. a une largeur diff.)"]
["Largeur du battant gauche",{"$nulls":7},"Šířka levého křídla","Width of left leaf","Breite des linken Flügels","Szerokość lewego skrzydła","Breedte van de linker deurblad","Largeur du battant gauche"]
[{"$f":"VLOOKUP(I258,I:N,$A$1,FALSE)","v":"Largeur du battant de droite"},{"$nulls":7},"Šířku pravého křídla","Width of right leaf is","Die Breite des rechten Flügels wird","Szerokość prawego skrzydła","Breedte van de rechter deurblad","Largeur du battant de droite"]
["sera calculé par TOORS",{"$nulls":7},"dopočítá TOORS","calculated by TOORS","von TOORS kalkuliert.","doliczy TOORS","wordt berekend door TOORS","sera calculé par TOORS"]
["Veuillez saisir soit les dimensions de l’orifice, soit les dimensions du cadre. La saisie des deux types de dimensions pourrait en effet mener à des ambiguïtés concernant la définition des dimensions.",{"$nulls":7},"Vyplňte prosím buď rozměry otvoru nebo rozměry rámu. Vyplnění obou typů rozměrů může způsobit nejednoznačnost definice rozměrů.","Please fill in either opening's dimensions or frame's dimensions. Filling in both types of dimensions could cause ambiguity in door specification.","Füllen Sie bitte entweder die Öffnungsmaße oder die Rahmenaußenmaße aus. Die Ausfüllung der beiden Maßentypen kann die Mehrdeutigkeit der Torspezifikation verursachen.","Proszę wpisać bądź wymiary otworu lub wymiary ramy. Wpisanie obu rodzajów wymiarów może spowodować niejednoznaczne zdefiniowanie wymiarów.","Vul ofwel de maten van de opening of de maten van het frame in. Invullen van beide type maten kan onduidelijkheid in de definiëring van de maten veroorzaken.","Veuillez saisir soit les dimensions de l’orifice, soit les dimensions du cadre. La saisie des deux types de dimensions pourrait en effet mener à des ambiguïtés concernant la définition des dimensions."]
["Nombre dans le battant gauche",{"$nulls":7},"Počet v levém křídle","Quantity in left leaf","Stückzahl im linken Flügel","Ilość w lewym skrzydle","Aantal in de linkervleugel","Nombre dans le battant gauche"]
["Nombre dans le battant droit",{"$nulls":7},"Počet v pravém křídle","Quantity in right leaf","Stückzahl im rechten Flügel","Ilość w prawym skrzydle","Aantal in de rechtervleugel","Nombre dans le battant droit"]
["MD 01",{"$nulls":7},"MD 01","MD 01","MD 01","MD 01","MD 01","MD 01"]
["MD 02",{"$nulls":7},"MD 02","MD 02","MD 02","MD 02","MD 02","MD 02"]
["MD 03",{"$nulls":7},"MD 03","MD 03","MD 03","MD 03","MD 03","MD 03"]
["MD 04",{"$nulls":7},"MD 04","MD 04","MD 04","MD 04","MD 04","MD 04"]
["MD 05",{"$nulls":7},"MD 05","MD 05","MD 05","MD 05","MD 05","MD 05"]
["MD 06",{"$nulls":7},"MD 06","MD 06","MD 06","MD 06","MD 06","MD 06"]
["MD 07",{"$nulls":7},"MD 07","MD 07","MD 07","MD 07","MD 07","MD 07"]
["MD 08",{"$nulls":7},"MD 08","MD 08","MD 08","MD 08","MD 08","MD 08"]
["MD 09",{"$nulls":7},"MD 09","MD 09","MD 09","MD 09","MD 09","MD 09"]
["MD 10",{"$nulls":7},"MD 10","MD 10","MD 10","MD 10","MD 10","MD 10"]
["MD 11",{"$nulls":7},"MD 11","MD 11","MD 11","MD 11","MD 11","MD 11"]
["MD 12",{"$nulls":7},"MD 12","MD 12","MD 12","MD 12","MD 12","MD 12"]
["Informations relative au design de la porte ManDoor",{"$nulls":7},"Informace o vzhledu ManDoor","Information about design of ManDoor","Optische Ausführung der Nebentür","Informacje o wyglądzie ManDoor","Informatie over de visuele uitvoering van ManDoor","Informations relative au design de la porte ManDoor"]
["Sans imposte",{"$nulls":7},"Bez nadsvětlíku","Without fixed top panel","Ohne Oberlicht","Bez nadświetla","Zonder bovenlicht","Sans imposte"]
["Avec imposte",{"$nulls":7},"S nadsvětlíkem","Including fixed top panel","Mit Oberlicht","Z nadświetlem","Met bovenlicht","Avec imposte"]
["Ferme-porte",{"$nulls":7},"Zavírač","Door spring","Türschließer","Samozamykacz","Deurveer/dranger","Ferme-porte"]
["Avec bras coulissant",{"$nulls":7},"Ano, s lištou","Yes, with sliding arm","Ja, mit Leiste","Tak, z listwą","Ja, met schuifarm","Avec bras coulissant"]
["En cas des alignements des panneaux avec des portes attenants, notez cette information sur la commande avec lesquelles portes désirez-vous les alignements des panneaux.",{"$nulls":7},"V případě požadavku na pohledovou shodu s vedle stojícími vraty uveďte do poznámky informaci o vratech, se kterými má být tato pozice pohledově shodná.","In case of requirement for door alignment with other door please clearly specify for which door (order/position).","Wenn diese Position mit einer anderen Position ansichtsgleich gefertigt werden soll, muss man diese Information ausdrücklich bemerken.","W przypadku wymogu zgodności widoku z obok stojącą bramą, podaj w uwagach informacje o bramie, z którą musi być ta pozycja wizualnie taka sama.","Wanneer de wens er is om een deur er gelijk uit te laten zien met een andere deur, geef dan duidelijk aan voor welke deur (order/positie).","En cas des alignements des panneaux avec des portes attenants, notez cette information sur la commande avec lesquelles portes désirez-vous les alignements des panneaux."]
["pas disponible pour",{"$nulls":7},"nelze pro","not possible for","nicht möglich für","nie można dla","niet mogelijk voor","pas disponible pour"]
["Gâche électrique",{"$nulls":7},"Elektrozámek","Electric lock","Elektrische Türöffner","Elektrozaczep","Elektrisch slot","Gâche électrique"]
["uniquement 2LDKL02, 2LDKL05",{"$nulls":7},"pouze pro 2LDKL02, 2LDKL05","only for 2LDKL02, 2LDKL05","nur für 2LDKL02, 2LDKL05","tylko 2LDKL02, 2LDKL05","alleen voor 2LDKL02, 2LDKL05","uniquement 2LDKL02, 2LDKL05"]
["uniquement MDKL02, MDKL06",{"$nulls":7},"pouze pro MDKL02, MDKL06","only for MDKL02, MDKL06","nur für MDKL02, MDKL06","tylko MDKL02, MDKL06","alleen voor MDKL02, MDKL06","uniquement MDKL02, MDKL06"]
["Poignée/poignée, plaquette, serrure standard/ cylindrique",{"$nulls":7},"Klika/klika, štítek, vložka klíč/klíč, standardní zámek","Handle /handle, shield, cylindrical lock-key hole, standard lock ","Klinke/Klinke, Schild, Standardschloss","Klamka/klamka, tarczka, wkładka klucz/klucz, zamek standardowy ","Deurkruk/deurkruk, schild, cilinder sleutel/sleutel, standaard-slot","Poignée/poignée, plaquette, serrure standard/ cylindrique"]
["Bouton/poignée, plaquette, serrure standard/ cylindrique",{"$nulls":7},"Madlo/klika, štítek, vložka klíč/klíč, standardní zámek","Grip/handle, shield, cylindrical lock - key hole, standard lock","Knauf/Klinke, Schild, Standardschloss","Uchwyt/klamka, tarczka, wkładka klucz/klucz, zamek standardowy ","Vast handgreep/deurkruk, schild, cilinder sleutel/sleutel, standaard-slot","Bouton/poignée, plaquette, serrure standard/ cylindrique"]
["Poignée/poignée, plaquette, serrure anti-panique",{"$nulls":7},"Klika/klika, štítek, vložka klíč/klíč, panikový zámek","Handle /handle, shield, cylindrical lock-key hole, panic lock","Klinke/Klinke, Schild, Panikschloss","Klamka/klamka, tarczka, wkładka klucz/klucz, zamek antypaniczny","Deurkruk/deurkruk, schild, cilinder sleutel/sleutel, paniek slot","Poignée/poignée, plaquette, serrure anti-panique"]
["Bouton/poignée, plaquette, serrure anti-panique",{"$nulls":7},"Madlo/klika, štítek, vložka klíč/klíč, panikový zámek","Grip/handle, shield, cylindrical lock– key hole, panic lock","Knauf/Klinke, Schild, Panikschloss","Uchwyt/klamka, tarczka, wkładka klucz/klucz, zamek antypaniczny","Vast handgreep/deurkruk, cilinder sleutel/sleutel, schild, paniek slot","Bouton/poignée, plaquette, serrure anti-panique"]
["Poignée/monture anti-panique, plaquette,",{"$nulls":7},"Klika/panikové kování, štítek, vložka klíč/klíč","Handle /panic exit bar, shield, cylindrical lock-key hole, panic lock","Klinke/Panikbeschlag—Stange, Schild","Klamka/okucia antypaniczne, tarczka, wkładka klucz/klucz","Deurkruk/paniek balk, schild, cilinder sleutel/sleutel","Poignée/monture anti-panique, plaquette,"]
["Bouton/monture anti-panique, plaquette,",{"$nulls":7},"Madlo/panikové kování, štítek, vložka klíč/klíč","Grip/panic exit bar, shield, cylindrical lock-key hole, panic lock","Knauf/Panikbeschlag—Stange, Schild","Uchwyt/okucia antypaniczne, szyld, wkładka klucz/klucz","Vast handgreep/paniek balk, schild, cilinder sleutel/sleutel","Bouton/monture anti-panique, plaquette,"]
["Poignée / poignée, plaquette, serrure 3 points",{"$nulls":7},"Klika/klika, štítek, vložka klíč/klíč, 3bodový zámek","Handle /handle, shield, cylindrical lock-key hole, 3-point lock","Klinke/Klinke, Schild, 3-fachschloss","Klamka/klamka, tarczka, wkładka klucz/klucz, zamek trzypunktowy","Deurkruk/deurkruk, schild, cilinder sleutel/sleutel, 3 puntslot","Poignée / poignée, plaquette, serrure 3 points"]
["Bouton/poignée, plaquette, serrure 3 points",{"$nulls":7},"Madlo/klika, štítek, vložka klíč/klíč, 3bodový zámek","Grip /handle, shield, cylindrical lock-key hole, 3-point lock","Knauf/Klinke, Schild, 3-fachschloss","Uchwyt/klamka, tarczka, wkładka klucz/klucz, zamek trzypunktowy","Vast handgreep/deurkruk, schild, cilinder sleutel/sleutel, 3 puntslot","Bouton/poignée, plaquette, serrure 3 points"]
["Les dimensions se peuvent variées en cas de la demande des alignements des panneaux",{"$nulls":7},"rozměr se může lišit při požadavku pohledové shody s vraty","dimensions can vary in case of requirement for alignment with sectional door","der Maß kann bei Ansichsgleichheit von der Standardausführung abweichen","Wymiar może się różnić w przypadku wymogu zgodności widoku z bramą","Afmetingen kunnen variëren in het geval er wensen zijn voor gelijkenis met sectionaaldeur","Les dimensions se peuvent variées en cas de la demande des alignements des panneaux"]
["Dimensions mm (WxH)",{"$nulls":7},"Rozměry mm (WxH)","Dimension mm (WxH)","Maße mm (BxH)","Wymiar mm (WxH)","Afmeting mm (WxH)","Dimensions mm (WxH)"]
["Design de l'aile de porte",{"$nulls":7},"Design křídla","Design of door leaf","Design des Torflügels","Design skrzydła drzwi","Ontwerp van deurblad","Design de l'aile de porte"]
["Cornière de finition large/Pentures latérales dble",{"$nulls":7},"Široké boční plechy/dvojité  boční panty","Wide end caps/double side hinges","Breite Endkappen / Doppelscharniere","Szerokie blachy boczne/podwójne zawiasy boczne","Brede eindkappen/dubbele zijscharnieren","Cornière de finition large/Pentures latérales dble"]
["Oui (standard pour W>=5000 mm)",{"$nulls":7},"Ano (standard pro W>=5000 mm)","Yes, (default for W>=5000 mm)","Ja (Standard für Torbreite W>=5000 mm)","Tak (standard dla W>=5000 mm)","Ja (standaard voor B>=5000 mm)","Oui (standard pour W>=5000 mm)"]
["Oui (standard pour W>=5001 mm)",{"$nulls":7},"Ano (standard pro W>=5001 mm)","Yes, (default for W>=5001 mm)","Ja (Standard für Torbreite W>=5001 mm)","Tak (standard dla W>=5001 mm)","Ja (standaard voor B>=5001 mm)","Oui (standard pour W>=5001 mm)"]
["Type d´arrêt de battant fermé (passif)",{"$nulls":7},"Aretace zavřeného pasivního křídla","Securing of closed passive leaf","Fixierung des Standflügels","Blokowanie zamkniętego skrzydła pasywnego","Vergrendeling gesloten deurblad","Type d´arrêt de battant fermé (passif)"]
["Barrière haut et bas (standard dans 2250 mm)",{"$nulls":7},"Zástrč dole a nahoře (standard do 2250 mm)","Sliding bolt top and bottom","Treibriegel oben + unten (Standard bis 2250)","Rygiel (w górę i w dół)","Grendel (boven en beneden)","Barrière haut et bas (standard dans 2250 mm)"]
["Verrou à  entailler (standard depuis 2251 mm)",{"$nulls":7},"Skrytá rozvora (standard od 2251 mm)","Hidden centre catch with rods","Falztreibriegel (Standard ab 2251mm)","Ukryty rozstaw osi (standard od 2251 mm)","Kantschuifvergrendeling in het midden","Verrou à  entailler (standard depuis 2251 mm)"]
[0,{"$nulls":7},"Vratová rozvora (baskule)","Centre catch with rods"]
["Réalisation des profils",{"$nulls":7},"Provedení profilů","Version of profiles","Ausführung der Profile","Wykonanie profili","Version of profiles","Réalisation des profils"]
["45mm,sans rupt.du pont therm.",{"$nulls":7},"45mm, bez přeruš.tepel.mostu","45mm, non thermal system","45mm, ohne thermische Trennung","45mm, bez przegrody termicznej","45mm, niet gebroken koude brug","45mm,sans rupt.du pont therm."]
["60mm,rupteur du pont thermique",{"$nulls":7},"60mm, přerušený tepelný most","60mm, broken thermal bridge","60mm, mit thermischer Trennung","60mm, z przegrodą termiczną","60mm, gebroken koude brug","60mm,rupteur du pont thermique"]
["uniquement",{"$nulls":7},"pouze pro","only for","nur für","tylko","alleen voor","uniquement"]

{"sheet":"Selections","index":2,"n_rows":85,"n_cols":56,"rows_kept":85,"hidden":true}
["Výběr jazyka",null,"Výběry pro INDY"]
["CZ",null,{"$f":"Translation!A95","v":"Barrières, barrière verrouillables"},{"$f":"Translation!A106","v":"Poignées"},"Okna INDY",{"$f":"Translation!A92","v":"Section Full Vision"},{"$f":"Translation!A93","v":"Section isolée"},{"$f":"Translation!A94","v":"Séction avec métal déployé"},{"$f":"Translation!A163","v":"Grilles de ventilation"},{"$f":"Translation!A196","v":"Cornière de soutien"},{"$nulls":3},{"$f":"Translation!A144&\" \"&Translation!A11","v":"Renforts Quantité"}]
["EN",{"$nulls":12},0,3]
["DE",null,{"$f":"Translation!A96","v":"490 ; Barrière"},{"$f":"Translation!A108","v":"460 ; Poignée bilatérale"},{"$f":"Translation!A76","v":"203 ; Ovale 1, CLICK"},{"$f":"Translation!A118","v":"250 ; Double vitrage SAN UV"},{"$f":"Translation!A125","v":"270 ; Panneaux en aluminium isolé stucco"},{"$f":"Translation!A127","v":"280 ; Tôle de choc, œillet 16/8"},{"$f":"Translation!A164","v":"Noir/blanc"},{"$f":"Translation!A197","v":"30x30, Équerre percée, orifices ronds"},{"$nulls":3},1871,4]
["PL",null,{"$f":"Translation!A97","v":"491 ; Barrière"},{"$f":"Translation!A109","v":"463 ; poignée bilatérale"},{"$f":"Translation!A77","v":"205 ; Carré 1, CLICK"},{"$f":"Translation!A119","v":"220 ; Simple vitrage SAN UV"},{"$f":"Translation!A126","v":"270.20 ; Panneaux en aluminium isolé hladké"},{"$f":"Translation!A128","v":"280 ; Tôle de choc, œillet 22/12"},{"$f":"Translation!A165","v":"Blanc/blanc"},{"$f":"Translation!A198","v":"30x30, Équerre percée, orifices ovales"},{"$nulls":3},2501,5]
["NL",null,{"$f":"Translation!A98","v":"492B ; Barrière verrouillable"},{"$f":"Translation!A107","v":"466 ; Poignée unilatérale"},{"$f":"Translation!A80","v":"217 ; Rond"},{"$f":"Translation!A120","v":"260 ; Double vitrage en polycarbonate"},{"$nulls":3},{"$f":"Translation!A199","v":"50x50, Équerre percée, orifices ronds"},{"$nulls":3},3101,6]
["FR",null,{"$f":"Translation!A99","v":"493B Barrière verrouillable"},null,{"$f":"Translation!A79","v":"216 ; Carré 9"},{"$f":"Translation!A121","v":"230 ; Simple vitrage en polycarbonate"},{"$nulls":3},{"$f":"Translation!A200","v":"50x50, Équerre percée, orifices ovales"},{"$nulls":3},3701,7]
[null,null,{"$f":"Translation!A100","v":"495 ; Barrière verrouillable"},null,{"$f":"Translation!A78","v":"207 ; Carré 2"},{"$f":"Translation!A122","v":"250.10 ; Double vitrage SAN UV, 1x ANTI SCRATCH"},{"$nulls":7},4311,8]
["Ano",null,{"$f":"Translation!A101","v":"497A ; Barrière verrouillable"},null,{"$f":"Translation!A81","v":"218 ; Carré INOX"},{"$f":"Translation!A123","v":"250.20 ; Double vitrage SAN UV, 2x ANTI SCRATCH"},{"$nulls":7},4921,9]
["Ne",null,{"$f":"Translation!A102","v":"497B ; Barrière verrouillable"},null,{"$f":"Translation!A82","v":"215 ; Rond INOX"},{"$f":"Translation!A124","v":"250.Co ; Double vitrage SAN UV ; coloré"},{"$nulls":7},5531,10]
[null,null,{"$f":"Translation!A103","v":"498 ; Barrière verrouillable"},null,{"$f":"Translation!A83","v":"211 ; Ovale 1, panneau de 80 mm"},{"$nulls":8},6141,11]
[{"$nulls":4},{"$f":"Translation!A84","v":"212 ; Carré 1, panneau de 80 mm"}]
[{"$nulls":4},{"$f":"Translation!A85","v":"216 ; Carré 9, panneau de 80 mm"}]
[]
[null,null,"Výběry pro GUARDY"]
[null,null,{"$f":"Translation!B95","v":0},{"$f":"Translation!B106","v":0},{"$f":"Translation!B75","v":0},{"$f":"Translation!B92","v":0},{"$f":"Translation!B93","v":0},{"$f":"Translation!B94","v":0},{"$f":"Translation!B163","v":0},{"$f":"Translation!B196","v":0}]
[]
[null,null,{"$f":"Translation!B96","v":0},{"$f":"Translation!B107","v":0},{"$f":"Translation!B86","v":0},{"$f":"Translation!B118","v":0},{"$f":"Translation!B125","v":0},{"$f":"Translation!B127","v":0},{"$f":"Translation!B164","v":0},{"$f":"Translation!B197","v":0}]
[null,null,{"$f":"Translation!B97","v":0},{"$f":"Translation!B110","v":0},{"$f":"Translation!B87","v":0},{"$f":"Translation!B119","v":0},{"$f":"Translation!B126","v":0},{"$f":"Translation!B128","v":0},{"$f":"Translation!B165","v":0},{"$f":"Translation!B198","v":0}]
[null,null,{"$f":"Translation!B98","v":0},{"$f":"Translation!B111","v":0},{"$f":"Translation!B88","v":0},{"$f":"Translation!B120","v":0},{"$nulls":3},{"$f":"Translation!B201","v":0}]
[null,null,{"$f":"Translation!B100","v":0},{"$f":"Translation!B108","v":0},{"$f":"Translation!B89","v":0},{"$f":"Translation!B121","v":0}]
[null,null,{"$f":"Translation!B103","v":0},{"$f":"Translation!B109","v":0},{"$f":"Translation!B79","v":0},{"$f":"Translation!B122","v":0}]
[null,null,{"$f":"Translation!B101","v":0},{"$f":"Translation!B112","v":0},{"$f":"Translation!B90","v":0},{"$f":"Translation!B123","v":0}]
[null,null,{"$f":"Translation!B102","v":0},{"$f":"Translation!B113","v":0},{"$f":"Translation!B81","v":0},{"$f":"Translation!B124","v":0}]
[null,null,{"$f":"Translation!B104","v":0},null,{"$f":"Translation!B91","v":0}]
[null,null,{"$f":"Translation!B105","v":0},null,{"$f":"Translation!B82","v":0}]
[{"$nulls":4},{"$f":"Translation!B78","v":0}]
[{"$nulls":4},{"$f":"Translation!B80","v":0}]
[{"$nulls":4},{"$f":"Translation!B76","v":0}]
[{"$nulls":4},{"$f":"Translation!B77","v":0}]
[]
[null,null,"Výběry pro EXT"]
[null,null,{"$f":"Translation!C95","v":0},{"$f":"Translation!C106","v":0},{"$f":"Translation!C75","v":0},{"$f":"Translation!C92","v":0},{"$f":"Translation!C93","v":0},{"$f":"Translation!C94","v":0},{"$f":"Translation!C163","v":0},{"$f":"Translation!C196","v":0}]
[]
[null,null,{"$f":"Translation!C96","v":0},{"$f":"Translation!C107","v":0},{"$f":"Translation!C86","v":0},{"$f":"Translation!C118","v":0},{"$f":"Translation!C125","v":0},{"$f":"Translation!C127","v":0},{"$f":"Translation!C164","v":0},{"$f":"Translation!C197","v":0}]
[null,null,{"$f":"Translation!C97","v":0},{"$f":"Translation!C110","v":0},{"$f":"Translation!C87","v":0},{"$f":"Translation!C119","v":0},{"$f":"Translation!C126","v":0},{"$f":"Translation!C128","v":0},{"$f":"Translation!C165","v":0},{"$f":"Translation!C198","v":0}]
[null,null,{"$f":"Translation!C100","v":0},{"$f":"Translation!C111","v":0},{"$f":"Translation!C88","v":0},{"$f":"Translation!C120","v":0},{"$nulls":3},{"$f":"Translation!C201","v":0}]
[null,null,{"$f":"Translation!C101","v":0},{"$f":"Translation!C108","v":0},{"$f":"Translation!C89","v":0},{"$f":"Translation!C121","v":0}]
[null,null,{"$f":"Translation!C102","v":0},{"$f":"Translation!C109","v":0},{"$f":"Translation!C79","v":0},{"$f":"Translation!C122","v":0}]
[null,null,{"$f":"Translation!C104","v":0},{"$f":"Translation!C112","v":0},{"$f":"Translation!C90","v":0},{"$f":"Translation!C123","v":0}]
[null,null,{"$f":"Translation!C105","v":0},{"$f":"Translation!C113","v":0},{"$f":"Translation!C81","v":0},{"$f":"Translation!C124","v":0}]
[{"$nulls":4},{"$f":"Translation!C91","v":0}]
[{"$nulls":4},{"$f":"Translation!C82","v":0}]
[{"$nulls":4},{"$f":"Translation!C78","v":0}]
[{"$nulls":4},{"$f":"Translation!C80","v":0}]
[{"$nulls":4},{"$f":"Translation!C76","v":0}]
[{"$nulls":4},{"$f":"Translation!C77","v":0}]
[]
[null,null,"Výběry pro MD NG"]
[{"$nulls":4},{"$f":"Translation!G75","v":0},{"$f":"Translation!G92","v":0}]
[]
[{"$nulls":4},{"$f":"Translation!G86","v":0},{"$f":"Translation!G118","v":0}]
[{"$nulls":4},{"$f":"Translation!G87","v":0},{"$f":"Translation!G119","v":0}]
[{"$nulls":4},{"$f":"Translation!G88","v":0},{"$f":"Translation!G120","v":0}]
[{"$nulls":3},"672; 9010/9010",{"$f":"Translation!G89","v":0},{"$f":"Translation!G121","v":0}]
[{"$nulls":4},{"$f":"Translation!G79","v":0},{"$f":"Translation!G122","v":0}]
[{"$nulls":4},{"$f":"Translation!G90","v":0},{"$f":"Translation!G123","v":0}]
[{"$nulls":4},{"$f":"Translation!G81","v":0},{"$f":"Translation!G124","v":0}]
[{"$nulls":4},{"$f":"Translation!G91","v":0}]
[{"$nulls":4},{"$f":"Translation!G82","v":0}]
[{"$nulls":4},{"$f":"Translation!G78","v":0}]
[{"$nulls":4},{"$f":"Translation!G80","v":0}]
[{"$nulls":4},{"$f":"Translation!G76","v":0}]
[{"$nulls":4},{"$f":"Translation!G77","v":0}]
[]
[null,null,"Výběry pro WD NG (2LD - double leaf door)"]
[{"$nulls":4},{"$f":"Translation!H75","v":0},{"$f":"Translation!H92","v":0}]
[]
[{"$nulls":4},{"$f":"Translation!H86","v":0},{"$f":"Translation!H118","v":0}]
[{"$nulls":4},{"$f":"Translation!H87","v":0},{"$f":"Translation!H119","v":0}]
[{"$nulls":4},{"$f":"Translation!H88","v":0},{"$f":"Translation!H120","v":0}]
[{"$nulls":4},{"$f":"Translation!H89","v":0},{"$f":"Translation!H121","v":0}]
[{"$nulls":4},{"$f":"Translation!H79","v":0},{"$f":"Translation!H122","v":0}]
[{"$nulls":4},{"$f":"Translation!H90","v":0},{"$f":"Translation!H123","v":0}]
[{"$nulls":4},{"$f":"Translation!H81","v":0},{"$f":"Translation!H124","v":0}]
[{"$nulls":4},{"$f":"Translation!H91","v":0}]
[{"$nulls":4},{"$f":"Translation!H82","v":0}]
[{"$nulls":4},{"$f":"Translation!H78","v":0}]
[{"$nulls":4},{"$f":"Translation!H80","v":0}]
[{"$nulls":4},{"$f":"Translation!H76","v":0}]
[{"$nulls":4},{"$f":"Translation!H77","v":0}]
[]
[]
[]
[{"$nulls":55},1649]